Department Family,Entity,Date,Expense Type,Expense Area,Supplier,Transaction Number,Amount In Sterling
"Department for Business, Innovation and Skills","Department for Business, Innovation and Skills",08/06/2010,Contributions (Programme),Business Group - Advanced Manufacturing Industries,CENEX,997736,7362.12
"Department for Business, Innovation and Skills","Department for Business, Innovation and Skills",08/06/2010,Contributions (Programme),Business Group - Advanced Manufacturing Industries,CENEX,997738,8742.5
"Department for Business, Innovation and Skills","Department for Business, Innovation and Skills",16/06/2010,Technical Support,Business Group - Advanced Manufacturing Industries,ELIZABETH BRIGNALL,998748,8225
"Department for Business, Innovation and Skills","Department for Business, Innovation and Skills",10/06/2010,Financial Advice and Services,Business Group - Advanced Manufacturing Industries,ERNST & YOUNG LLP,998104,7343.75
"Department for Business, Innovation and Skills","Department for Business, Innovation and Skills",10/06/2010,Financial Advice and Services,Business Group - Advanced Manufacturing Industries,ERNST & YOUNG LLP,998103,7343.75
"Department for Business, Innovation and Skills","Department for Business, Innovation and Skills",17/06/2010,Financial Advice and Services,Business Group - Advanced Manufacturing Industries,INTERIM PERFORMERS LTD,998795,1245.5
"Department for Business, Innovation and Skills","Department for Business, Innovation and Skills",23/06/2010,Financial Advice and Services,Business Group - Advanced Manufacturing Industries,INTERIM PERFORMERS LTD,999312,2491
"Department for Business, Innovation and Skills","Department for Business, Innovation and Skills",23/06/2010,Financial Advice and Services,Business Group - Advanced Manufacturing Industries,INTERIM PERFORMERS LTD,999309,2802.375
"Department for Business, Innovation and Skills","Department for Business, Innovation and Skills",02/06/2010,Financial Advice and Services,Business Group - Advanced Manufacturing Industries,INTERIM PERFORMERS LTD,997121,3113.75
"Department for Business, Innovation and Skills","Department for Business, Innovation and Skills",28/06/2010,Technical Support,Business Group - Advanced Manufacturing Industries,MICHAEL J RUSSELL LTD,999760,14393.75
"Department for Business, Innovation and Skills","Department for Business, Innovation and Skills",04/06/2010,Technical Support,Business Group - Advanced Manufacturing Industries,MICHAEL J RUSSELL LTD,997546,16450
"Department for Business, Innovation and Skills","Department for Business, Innovation and Skills",21/06/2010,On-Line Databases (Programme),Business Group - Advanced Manufacturing Industries,STANDARD & POORS,999222,4700
"Department for Business, Innovation and Skills","Department for Business, Innovation and Skills",04/06/2010,Publications (Programme),Business Group - Advanced Manufacturing Industries,JANES INFORMATION GROUP LTD,997520,521.25
"Department for Business, Innovation and Skills","Department for Business, Innovation and Skills",15/06/2010,Publications (Programme),Business Group - Advanced Manufacturing Industries,JANES INFORMATION GROUP LTD,998546,975
"Department for Business, Innovation and Skills","Department for Business, Innovation and Skills",01/06/2010,Non-GIA Funding of Bodies (Departmental and Non-Departmental),Fair Markets Group Summary - Employment Relations,ACAS,996469,3900000
"Department for Business, Innovation and Skills","Department for Business, Innovation and Skills",29/06/2010,Non-GIA Funding of Bodies (Departmental and Non-Departmental),Fair Markets Group Summary - Employment Relations,ACAS,999772,4200000
"Department for Business, Innovation and Skills","Department for Business, Innovation and Skills",08/06/2010,Grants - Non Statutory - Current - Other,Business Group - Information Economy,ONE NORTH EAST,997145,-673477.87
"Department for Business, Innovation and Skills","Department for Business, Innovation and Skills",30/06/2010,Grants - Non Statutory - Current - Other,Business Group - Information Economy,ONE NORTH EAST,1000086,60474.08
"Department for Business, Innovation and Skills","Department for Business, Innovation and Skills",08/06/2010,Grants - Non Statutory - Current - Other,Business Group - Information Economy,ONE NORTH EAST,997145,153218.86
"Department for Business, Innovation and Skills","Department for Business, Innovation and Skills",08/06/2010,Grants - Non Statutory - Current - Other,Business Group - Information Economy,ONE NORTH EAST,997145,673477.87
"Department for Business, Innovation and Skills","Department for Business, Innovation and Skills",08/06/2010,Capital Grants - Other,Business Group - Information Economy,ONE NORTH EAST,997145,520259.01
"Department for Business, Innovation and Skills","Department for Business, Innovation and Skills",24/06/2010,Grants - Non Statutory - Current - Other,Business Group - Advanced Manufacturing Industries,ONE NORTH EAST,999582,77715
"Department for Business, Innovation and Skills","Department for Business, Innovation and Skills",24/06/2010,Capital Grants - Other,Business Group - Advanced Manufacturing Industries,ONE NORTH EAST,999594,-77715.6
"Department for Business, Innovation and Skills","Department for Business, Innovation and Skills",24/06/2010,Capital Grants - Other,Business Group - Advanced Manufacturing Industries,ONE NORTH EAST,999594,77714.95
"Department for Business, Innovation and Skills","Department for Business, Innovation and Skills",24/06/2010,Capital Grants - Other,Business Group - Advanced Manufacturing Industries,ONE NORTH EAST,999594,77715.6
"Department for Business, Innovation and Skills","Department for Business, Innovation and Skills",24/06/2010,Capital Grants - Other,Business Group - Advanced Manufacturing Industries,ONE NORTH EAST,999582,729896.97
"Department for Business, Innovation and Skills","Department for Business, Innovation and Skills",16/06/2010,Grants - Non Statutory - Current - Other,Business Group - Advanced Manufacturing Industries,EAST MIDLANDS DEVELOPMENT AGENCY,998746,12913
"Department for Business, Innovation and Skills","Department for Business, Innovation and Skills",16/06/2010,Grants - Non Statutory - Current - Other,Business Group - Advanced Manufacturing Industries,NORTHWEST REGIONAL DEVELOPMENT AGENCY,997976,103551
"Department for Business, Innovation and Skills","Department for Business, Innovation and Skills",04/06/2010,Capital Grants - Other,Business Group - Life Sciences,STEVENAGE BIOSCIENCE PARK,997512,1438478
"Department for Business, Innovation and Skills","Department for Business, Innovation and Skills",24/06/2010,Grants - Non Statutory - Current - Other,Business Group - Advanced Manufacturing Industries,ONE NORTH EAST,999581,78650.77
"Department for Business, Innovation and Skills","Department for Business, Innovation and Skills",24/06/2010,Purchase of  Advertising and Publicity (Programme),Fair Markets Group Summary - Employment Relations,COI COMMUNICATIONS,999505,4000
"Department for Business, Innovation and Skills","Department for Business, Innovation and Skills",25/06/2010,Outsourced Programme Management Services,Fair Markets Group Summary - Employment Relations,PENINSULA BUSINESS SERVICES LTD,999659,-2982.525
"Department for Business, Innovation and Skills","Department for Business, Innovation and Skills",25/06/2010,Outsourced Programme Management Services,Fair Markets Group Summary - Employment Relations,PENINSULA BUSINESS SERVICES LTD,999599,-234.4125
"Department for Business, Innovation and Skills","Department for Business, Innovation and Skills",25/06/2010,Outsourced Programme Management Services,Fair Markets Group Summary - Employment Relations,PENINSULA BUSINESS SERVICES LTD,999659,2982.525
"Department for Business, Innovation and Skills","Department for Business, Innovation and Skills",25/06/2010,Outsourced Programme Management Services,Fair Markets Group Summary - Employment Relations,PENINSULA BUSINESS SERVICES LTD,999659,3047.3625
"Department for Business, Innovation and Skills","Department for Business, Innovation and Skills",15/06/2010,Technical Advice,Fair Markets Group Summary - Employment Relations,WEIGHTMANS,998528,766.64
"Department for Business, Innovation and Skills","Department for Business, Innovation and Skills",24/06/2010,Contributions (Programme),Business Group - Economic Development Directorate,ECONOMIC AND SOCIAL RESEARCH COUNCIL ESRC,999339,2234.04
"Department for Business, Innovation and Skills","Department for Business, Innovation and Skills",24/06/2010,Contributions (Programme),Business Group - Economic Development Directorate,ECONOMIC AND SOCIAL RESEARCH COUNCIL ESRC,999339,84875
"Department for Business, Innovation and Skills","Department for Business, Innovation and Skills",22/06/2010,Administration of Grants and Awards,Business Group - Advanced Manufacturing Industries,BROOK STREET (UK) LTD,999277,503.6285
"Department for Business, Innovation and Skills","Department for Business, Innovation and Skills",30/06/2010,Administration of Grants and Awards,Business Group - Advanced Manufacturing Industries,BROOK STREET (UK) LTD,999797,503.6285
"Department for Business, Innovation and Skills","Department for Business, Innovation and Skills",10/06/2010,Payments to Barclays for Carlson Wagonlit Travel Contract,Finance & Commercial Group - Finance Group,BANNER BUSINESS SERVICES LTD,998090,937.21525
"Department for Business, Innovation and Skills","Department for Business, Innovation and Skills",17/06/2010,GPC New Procedures,Corporate Balance,BARCLAYS BANK PLC,998773,2508.17
"Department for Business, Innovation and Skills","Department for Business, Innovation and Skills",17/06/2010,GPC New Procedures,Finance & Commercial Group - Finance Group,BARCLAYS BANK PLC,998777,35947.06
"Department for Business, Innovation and Skills","Department for Business, Innovation and Skills",17/06/2010,GPC New Procedures,Finance & Commercial Group - Finance Group,BARCLAYS BANK PLC,998776,122090.63
"Department for Business, Innovation and Skills","Department for Business, Innovation and Skills",17/06/2010,Payments to Barclays for Carlson Wagonlit Travel Contract,Finance & Commercial Group - Finance Group,BARCLAYS BANK PLC,998772,216698.16
"Department for Business, Innovation and Skills","Department for Business, Innovation and Skills",25/06/2010,Leased Buildings - Clearing,Finance & Commercial Group - Information and Workplace Strategies,BETA SECURITY LTD,999663,18659
"Department for Business, Innovation and Skills","Department for Business, Innovation and Skills",30/06/2010,Computer Equipment - Clearing,Finance & Commercial Group - Information and Workplace Strategies,BIRD & BIRD,1000014,6633.58
"Department for Business, Innovation and Skills","Department for Business, Innovation and Skills",08/06/2010,Computer Equipment - Clearing,Finance & Commercial Group - Information and Workplace Strategies,BROOK STREET (UK) LTD,997796,561.35625
"Department for Business, Innovation and Skills","Department for Business, Innovation and Skills",09/06/2010,Season Ticket and Bicycle Loans,"Legal, People & Communications Group - HRCM - Human Resources and Change Management Directorate",CABINET OFFICE,997180,704.65
"Department for Business, Innovation and Skills","Department for Business, Innovation and Skills",03/06/2010,Payments to Barclays for Carlson Wagonlit Travel Contract,Finance & Commercial Group - Finance Group,CARLSON WAGONLIT TRAVEL UK LTD,996188,-873.4
"Department for Business, Innovation and Skills","Department for Business, Innovation and Skills",03/06/2010,Payments to Barclays for Carlson Wagonlit Travel Contract,Finance & Commercial Group - Finance Group,CARLSON WAGONLIT TRAVEL UK LTD,996188,-9.43525
"Department for Business, Innovation and Skills","Department for Business, Innovation and Skills",16/06/2010,Payments to Barclays for Carlson Wagonlit Travel Contract,Finance & Commercial Group - Finance Group,CARLSON WAGONLIT TRAVEL UK LTD,998631,717
"Department for Business, Innovation and Skills","Department for Business, Innovation and Skills",16/06/2010,Payments to Barclays for Carlson Wagonlit Travel Contract,Finance & Commercial Group - Finance Group,CARLSON WAGONLIT TRAVEL UK LTD,998631,27129.51
"Department for Business, Innovation and Skills","Department for Business, Innovation and Skills",03/06/2010,Payments to Barclays for Carlson Wagonlit Travel Contract,Finance & Commercial Group - Finance Group,CARLSON WAGONLIT TRAVEL UK LTD,997438,35162.9
"Department for Business, Innovation and Skills","Department for Business, Innovation and Skills",09/06/2010,Season Ticket and Bicycle Loans,"Legal, People & Communications Group - HRCM - Human Resources and Change Management Directorate",CHILD MAINTENANCE AND ENFORCEMENT COMMISSION,997132,1713.6
"Department for Business, Innovation and Skills","Department for Business, Innovation and Skills",01/06/2010,Leased Buildings - Clearing,Finance & Commercial Group - Information and Workplace Strategies,COFELY LTD,997194,-10181.594
"Department for Business, Innovation and Skills","Department for Business, Innovation and Skills",01/06/2010,Leased Buildings - Clearing,Finance & Commercial Group - Information and Workplace Strategies,COFELY LTD,997194,-10181.594
"Department for Business, Innovation and Skills","Department for Business, Innovation and Skills",02/06/2010,Leased Buildings - Clearing,Finance & Commercial Group - Information and Workplace Strategies,COFELY LTD,997328,1954.5655
"Department for Business, Innovation and Skills","Department for Business, Innovation and Skills",01/06/2010,Leased Buildings - Clearing,Finance & Commercial Group - Information and Workplace Strategies,COFELY LTD,997194,10181.594
"Department for Business, Innovation and Skills","Department for Business, Innovation and Skills",01/06/2010,Leased Buildings - Clearing,Finance & Commercial Group - Information and Workplace Strategies,COFELY LTD,997194,10181.594
"Department for Business, Innovation and Skills","Department for Business, Innovation and Skills",01/06/2010,Leased Buildings - Clearing,Finance & Commercial Group - Information and Workplace Strategies,COFELY LTD,997194,10402.933
"Department for Business, Innovation and Skills","Department for Business, Innovation and Skills",01/06/2010,Leased Buildings - Clearing,Finance & Commercial Group - Information and Workplace Strategies,COFELY LTD,997194,199855.092
"Department for Business, Innovation and Skills","Department for Business, Innovation and Skills",18/06/2010,Computer Equipment - Clearing,Finance & Commercial Group - Information and Workplace Strategies,COMPUTACENTER plc,998269,923.5735
"Department for Business, Innovation and Skills","Department for Business, Innovation and Skills",09/06/2010,Computer Equipment - Clearing,Finance & Commercial Group - Information and Workplace Strategies,COMPUTACENTER plc,997872,6647.1395
"Department for Business, Innovation and Skills","Department for Business, Innovation and Skills",22/06/2010,Computer Equipment - Clearing,Finance & Commercial Group - Information and Workplace Strategies,COMPUTACENTER plc,998179,6647.1395
"Department for Business, Innovation and Skills","Department for Business, Innovation and Skills",30/06/2010,Cash CFERs paid over to HMT,Corporate Balance,CONSOLIDATED FUND ACCOUNT 6622,1000174,15000000
"Department for Business, Innovation and Skills","Department for Business, Innovation and Skills",09/06/2010,Season Ticket and Bicycle Loans,"Legal, People & Communications Group - HRCM - Human Resources and Change Management Directorate",DEPARTMENT FOR COMMUNITIES AND LOCAL GOVERNMENT,997170,736
"Department for Business, Innovation and Skills","Department for Business, Innovation and Skills",14/06/2010,Recoveries Account,Corporate Balance,DEPARTMENT FOR CULTURE MEDIA AND SPORT,998421,1000000
"Department for Business, Innovation and Skills","Department for Business, Innovation and Skills",24/06/2010,Leased Buildings - Clearing,Finance & Commercial Group - Information and Workplace Strategies,EC HARRIS LLP,999486,1757.50625
"Department for Business, Innovation and Skills","Department for Business, Innovation and Skills",02/06/2010,Computer Equipment - Clearing,Finance & Commercial Group - Information and Workplace Strategies,EDUSERV TECHNOLOGIES LTD,997325,12716.75475
"Department for Business, Innovation and Skills","Department for Business, Innovation and Skills",14/06/2010,Computer Equipment - Clearing,Finance & Commercial Group - Information and Workplace Strategies,EDUSERV TECHNOLOGIES LTD,998368,14958.53725
"Department for Business, Innovation and Skills","Department for Business, Innovation and Skills",02/06/2010,Computer Equipment - Clearing,Finance & Commercial Group - Information and Workplace Strategies,EDUSERV TECHNOLOGIES LTD,997325,48775.69525
"Department for Business, Innovation and Skills","Department for Business, Innovation and Skills",11/06/2010,Leased Buildings - Clearing,Finance & Commercial Group - Information and Workplace Strategies,EV BULLEN & SON LTD,998236,14879.90625
"Department for Business, Innovation and Skills","Department for Business, Innovation and Skills",01/06/2010,Payments to Barclays for Carlson Wagonlit Travel Contract,Finance & Commercial Group - Finance Group,EXPOTEL HOTEL RESERVATIONS LTD,997193,6193.613
"Department for Business, Innovation and Skills","Department for Business, Innovation and Skills",01/06/2010,Payments to Expotel for Hotel Costs Contract,Finance & Commercial Group - Finance Group,EXPOTEL HOTEL RESERVATIONS LTD,996998,-1.41
"Department for Business, Innovation and Skills","Department for Business, Innovation and Skills",23/06/2010,Payments to Expotel for Hotel Costs Contract,Finance & Commercial Group - Finance Group,EXPOTEL HOTEL RESERVATIONS LTD,999458,515.62
"Department for Business, Innovation and Skills","Department for Business, Innovation and Skills",23/06/2010,Payments to Expotel for Hotel Costs Contract,Finance & Commercial Group - Finance Group,EXPOTEL HOTEL RESERVATIONS LTD,999458,13009.91725
"Department for Business, Innovation and Skills","Department for Business, Innovation and Skills",11/06/2010,Recoveries Account,Corporate Balance,H C STARCK LTD,998253,820
"Department for Business, Innovation and Skills","Department for Business, Innovation and Skills",28/06/2010,Season Ticket and Bicycle Loans,"Legal, People & Communications Group - HRCM - Human Resources and Change Management Directorate",HOME OFFICE,999680,1086.72
"Department for Business, Innovation and Skills","Department for Business, Innovation and Skills",17/06/2010,Computer Equipment - Clearing,Finance & Commercial Group - Information and Workplace Strategies,INSIGHT DIRECT (UK) LTD,998808,40694.574
"Department for Business, Innovation and Skills","Department for Business, Innovation and Skills",11/06/2010,Leased Buildings - Clearing,Finance & Commercial Group - Information and Workplace Strategies,ISS FACILITY SERVICES LTD T/A ISS PEGASUS SECURITY,998301,3688.983
"Department for Business, Innovation and Skills","Department for Business, Innovation and Skills",25/06/2010,Leased Buildings - Clearing,Finance & Commercial Group - Information and Workplace Strategies,J G REGAN LTD,999653,2726
"Department for Business, Innovation and Skills","Department for Business, Innovation and Skills",28/06/2010,Leased Buildings - Clearing,Finance & Commercial Group - Information and Workplace Strategies,JOHN BRADSHAW & SON LTD T/A BCL,999852,10876.975
"Department for Business, Innovation and Skills","Department for Business, Innovation and Skills",09/06/2010,Computer Equipment - Clearing,Finance & Commercial Group - Information and Workplace Strategies,LOGICA UK LTD,997925,-31379.1415
"Department for Business, Innovation and Skills","Department for Business, Innovation and Skills",09/06/2010,Computer Equipment - Clearing,Finance & Commercial Group - Information and Workplace Strategies,LOGICA UK LTD,998040,-12556.712
"Department for Business, Innovation and Skills","Department for Business, Innovation and Skills",23/06/2010,Computer Equipment - Clearing,Finance & Commercial Group - Information and Workplace Strategies,LOGICA UK LTD,996929,1924.0625
"Department for Business, Innovation and Skills","Department for Business, Innovation and Skills",29/06/2010,Computer Equipment - Clearing,Finance & Commercial Group - Information and Workplace Strategies,LOGICA UK LTD,999924,10844.50975
"Department for Business, Innovation and Skills","Department for Business, Innovation and Skills",09/06/2010,Computer Equipment - Clearing,Finance & Commercial Group - Information and Workplace Strategies,LOGICA UK LTD,998040,12556.712
"Department for Business, Innovation and Skills","Department for Business, Innovation and Skills",09/06/2010,Computer Equipment - Clearing,Finance & Commercial Group - Information and Workplace Strategies,LOGICA UK LTD,998044,12829.684
"Department for Business, Innovation and Skills","Department for Business, Innovation and Skills",09/06/2010,Computer Equipment - Clearing,Finance & Commercial Group - Information and Workplace Strategies,LOGICA UK LTD,998040,12829.684
"Department for Business, Innovation and Skills","Department for Business, Innovation and Skills",03/06/2010,Computer Equipment - Clearing,Finance & Commercial Group - Information and Workplace Strategies,LOGICA UK LTD,997470,29375
"Department for Business, Innovation and Skills","Department for Business, Innovation and Skills",09/06/2010,Computer Equipment - Clearing,Finance & Commercial Group - Information and Workplace Strategies,LOGICA UK LTD,997925,31379.1415
"Department for Business, Innovation and Skills","Department for Business, Innovation and Skills",09/06/2010,Computer Equipment - Clearing,Finance & Commercial Group - Information and Workplace Strategies,LOGICA UK LTD,997925,32061.29675
"Department for Business, Innovation and Skills","Department for Business, Innovation and Skills",21/06/2010,Leased Buildings - Clearing,Finance & Commercial Group - Information and Workplace Strategies,M J FERGUSON LTD,999153,15649.59
"Department for Business, Innovation and Skills","Department for Business, Innovation and Skills",14/06/2010,Computer Equipment - Clearing,Finance & Commercial Group - Information and Workplace Strategies,METHODS CONSULTING LTD,998403,15873.075
"Department for Business, Innovation and Skills","Department for Business, Innovation and Skills",15/06/2010,Recoveries Account,Corporate Balance,NOMINET UK,998424,1633
"Department for Business, Innovation and Skills","Department for Business, Innovation and Skills",24/06/2010,Furniture F & F - Clearing,Finance & Commercial Group - Information and Workplace Strategies,OFFICE PROJECTS LTD,999642,374050.863
"Department for Business, Innovation and Skills","Department for Business, Innovation and Skills",28/06/2010,Leased Buildings - Clearing,Finance & Commercial Group - Information and Workplace Strategies,OFFICE PROJECTS LTD,999849,549.9
"Department for Business, Innovation and Skills","Department for Business, Innovation and Skills",28/06/2010,Leased Buildings - Clearing,Finance & Commercial Group - Information and Workplace Strategies,OFFICE PROJECTS LTD,999847,4335.75
"Department for Business, Innovation and Skills","Department for Business, Innovation and Skills",30/06/2010,Leased Buildings - Clearing,Finance & Commercial Group - Information and Workplace Strategies,OFFICE PROJECTS LTD,1000097,5124.0105
"Department for Business, Innovation and Skills","Department for Business, Innovation and Skills",08/06/2010,Leased Buildings - Clearing,Finance & Commercial Group - Information and Workplace Strategies,OFFICE PROJECTS LTD,997755,17490.649
"Department for Business, Innovation and Skills","Department for Business, Innovation and Skills",24/06/2010,Leased Buildings - Clearing,Finance & Commercial Group - Information and Workplace Strategies,OFFICE PROJECTS LTD,999637,638281.1853
"Department for Business, Innovation and Skills","Department for Business, Innovation and Skills",24/06/2010,Leased Buildings - Clearing,Finance & Commercial Group - Information and Workplace Strategies,OFFICE PROJECTS LTD,999637,1175000
"Department for Business, Innovation and Skills","Department for Business, Innovation and Skills",28/06/2010,Leased Buildings - Clearing,Finance & Commercial Group - Information and Workplace Strategies,OXFORD EXHIBITION SERVICES LTD,999866,898.875
"Department for Business, Innovation and Skills","Department for Business, Innovation and Skills",28/06/2010,Leased Buildings - Clearing,Finance & Commercial Group - Information and Workplace Strategies,OXFORD EXHIBITION SERVICES LTD,999865,1462.875
"Department for Business, Innovation and Skills","Department for Business, Innovation and Skills",10/06/2010,Intangible Software clearing account,Finance & Commercial Group - Information and Workplace Strategies,PARITY RESOURCES LTD,998101,53286.25
"Department for Business, Innovation and Skills","Department for Business, Innovation and Skills",03/06/2010,Computer Equipment - Clearing,Finance & Commercial Group - Information and Workplace Strategies,PARITY RESOURCES LTD,996647,-8769.871
"Department for Business, Innovation and Skills","Department for Business, Innovation and Skills",03/06/2010,Computer Equipment - Clearing,Finance & Commercial Group - Information and Workplace Strategies,PARITY RESOURCES LTD,996647,-8583.278
"Department for Business, Innovation and Skills","Department for Business, Innovation and Skills",03/06/2010,Computer Equipment - Clearing,Finance & Commercial Group - Information and Workplace Strategies,PARITY RESOURCES LTD,996647,8583.278
"Department for Business, Innovation and Skills","Department for Business, Innovation and Skills",03/06/2010,Computer Equipment - Clearing,Finance & Commercial Group - Information and Workplace Strategies,PARITY RESOURCES LTD,996647,8583.278
"Department for Business, Innovation and Skills","Department for Business, Innovation and Skills",03/06/2010,Computer Equipment - Clearing,Finance & Commercial Group - Information and Workplace Strategies,PARITY RESOURCES LTD,996647,8769.871
"Department for Business, Innovation and Skills","Department for Business, Innovation and Skills",18/06/2010,Computer Equipment - Clearing,Finance & Commercial Group - Information and Workplace Strategies,PARITY RESOURCES LTD,998829,9622.075
"Department for Business, Innovation and Skills","Department for Business, Innovation and Skills",11/06/2010,Computer Equipment - Clearing,Finance & Commercial Group - Information and Workplace Strategies,PARITY RESOURCES LTD,998197,27626.365
"Department for Business, Innovation and Skills","Department for Business, Innovation and Skills",09/06/2010,Overseas Advances,Corporate Balance,"Personal Expense, Name Witheld",10270108,-220
"Department for Business, Innovation and Skills","Department for Business, Innovation and Skills",11/06/2010,Overseas Advances,Corporate Balance,"Personal Expense, Name Witheld",10270212,1000
"Department for Business, Innovation and Skills","Department for Business, Innovation and Skills",01/06/2010,Detached Duty Advances,Corporate Balance,"Personal Expense, Name Witheld",10269782,670
"Department for Business, Innovation and Skills","Department for Business, Innovation and Skills",28/06/2010,BIS Tax Deductions,Corporate Balance,"Personal Expense, Name Witheld",10270781,-54.11
"Department for Business, Innovation and Skills","Department for Business, Innovation and Skills",28/06/2010,BIS Tax Deductions,Corporate Balance,"Personal Expense, Name Witheld",10270789,-48.2
"Department for Business, Innovation and Skills","Department for Business, Innovation and Skills",28/06/2010,BIS Tax Deductions,Corporate Balance,"Personal Expense, Name Witheld",10270780,-48.2
"Department for Business, Innovation and Skills","Department for Business, Innovation and Skills",28/06/2010,BIS Tax Deductions,Corporate Balance,"Personal Expense, Name Witheld",10270787,-45.99
"Department for Business, Innovation and Skills","Department for Business, Innovation and Skills",28/06/2010,BIS Tax Deductions,Corporate Balance,"Personal Expense, Name Witheld",10270779,-38.92
"Department for Business, Innovation and Skills","Department for Business, Innovation and Skills",28/06/2010,BIS Tax Deductions,Corporate Balance,"Personal Expense, Name Witheld",10270788,-37.72
"Department for Business, Innovation and Skills","Department for Business, Innovation and Skills",28/06/2010,BIS Tax Deductions,Corporate Balance,"Personal Expense, Name Witheld",10270786,-37.43
"Department for Business, Innovation and Skills","Department for Business, Innovation and Skills",28/06/2010,BIS Tax Deductions,Corporate Balance,"Personal Expense, Name Witheld",10270782,-37.28
"Department for Business, Innovation and Skills","Department for Business, Innovation and Skills",28/06/2010,BIS Tax Deductions,Corporate Balance,"Personal Expense, Name Witheld",10270777,-33.55
"Department for Business, Innovation and Skills","Department for Business, Innovation and Skills",28/06/2010,BIS Tax Deductions,Corporate Balance,"Personal Expense, Name Witheld",10270783,-31
"Department for Business, Innovation and Skills","Department for Business, Innovation and Skills",28/06/2010,BIS Tax Deductions,Corporate Balance,"Personal Expense, Name Witheld",10270778,-30.92
"Department for Business, Innovation and Skills","Department for Business, Innovation and Skills",28/06/2010,BIS Tax Deductions,Corporate Balance,"Personal Expense, Name Witheld",10270772,-28.68
"Department for Business, Innovation and Skills","Department for Business, Innovation and Skills",28/06/2010,BIS Tax Deductions,Corporate Balance,"Personal Expense, Name Witheld",10270785,-23.2
"Department for Business, Innovation and Skills","Department for Business, Innovation and Skills",28/06/2010,BIS Tax Deductions,Corporate Balance,"Personal Expense, Name Witheld",10270773,-19.16
"Department for Business, Innovation and Skills","Department for Business, Innovation and Skills",28/06/2010,BIS Tax Deductions,Corporate Balance,"Personal Expense, Name Witheld",10270784,-13.45
"Department for Business, Innovation and Skills","Department for Business, Innovation and Skills",28/06/2010,BIS Tax Deductions,Corporate Balance,"Personal Expense, Name Witheld",10270791,-10
"Department for Business, Innovation and Skills","Department for Business, Innovation and Skills",28/06/2010,BIS Tax Deductions,Corporate Balance,"Personal Expense, Name Witheld",10270790,-7.01
"Department for Business, Innovation and Skills","Department for Business, Innovation and Skills",03/06/2010,Payments to Redfern for Rail Travel Contract,Finance & Commercial Group - Finance Group,REDFERN TRAVEL LTD,997428,8342.04
"Department for Business, Innovation and Skills","Department for Business, Innovation and Skills",03/06/2010,Payments to Redfern for Rail Travel Contract,Finance & Commercial Group - Finance Group,REDFERN TRAVEL LTD,997421,68256.45
"Department for Business, Innovation and Skills","Department for Business, Innovation and Skills",24/06/2010,Leased Buildings - Clearing,Finance & Commercial Group - Information and Workplace Strategies,SECURITY SERVICES GROUP,999669,100083.9738
"Department for Business, Innovation and Skills","Department for Business, Innovation and Skills",25/06/2010,Furniture F & F - Clearing,Finance & Commercial Group - Information and Workplace Strategies,SENATOR INTERNATIONAL LTD,999660,623.81925
"Department for Business, Innovation and Skills","Department for Business, Innovation and Skills",11/06/2010,Furniture F & F - Clearing,Finance & Commercial Group - Information and Workplace Strategies,SENATOR INTERNATIONAL LTD,998282,2885.9175
"Department for Business, Innovation and Skills","Department for Business, Innovation and Skills",09/06/2010,Furniture F & F - Clearing,Finance & Commercial Group - Information and Workplace Strategies,SENATOR INTERNATIONAL LTD,997898,7173.4925
"Department for Business, Innovation and Skills","Department for Business, Innovation and Skills",08/06/2010,Furniture F & F - Clearing,Finance & Commercial Group - Information and Workplace Strategies,SENATOR INTERNATIONAL LTD,997902,18095
"Department for Business, Innovation and Skills","Department for Business, Innovation and Skills",08/06/2010,Furniture F & F - Clearing,Finance & Commercial Group - Information and Workplace Strategies,SENATOR INTERNATIONAL LTD,997897,38864.723
"Department for Business, Innovation and Skills","Department for Business, Innovation and Skills",14/06/2010,PNB Funding,Office of Manpower Economics - Office of Manpower Economics,SPOILT FOR CHOICE LTD,998247,714
"Department for Business, Innovation and Skills","Department for Business, Innovation and Skills",07/06/2010,Recoveries Account,Corporate Balance,UK TRADE & INVESTMENT,997704,2000000
"Department for Business, Innovation and Skills","Department for Business, Innovation and Skills",21/06/2010,BIS Tax Deductions,Corporate Balance,ZZZZINLAND REVENUE,999248,551.02
"Department for Business, Innovation and Skills","Department for Business, Innovation and Skills",21/06/2010,Board Members Tax Deductions (Suspense Account),Corporate Balance,ZZZZINLAND REVENUE,999251,10283.2
"Department for Business, Innovation and Skills","Department for Business, Innovation and Skills",21/06/2010,Board Members National Insurance Deductions (Suspense Account),Corporate Balance,ZZZZINLAND REVENUE,999253,2561.37
"Department for Business, Innovation and Skills","Department for Business, Innovation and Skills",23/06/2010,Grant in Aid - Current -Other,Fair Markets Group Summary - Consumer and Competition Policy,CITIZENS ADVICE BUREAU,999421,2250000
"Department for Business, Innovation and Skills","Department for Business, Innovation and Skills",14/06/2010,Telephone Helpline Services,Fair Markets Group Summary - Consumer and Competition Policy,MONEY ADVICE TRUST,998323,796875
"Department for Business, Innovation and Skills","Department for Business, Innovation and Skills",04/06/2010,On-Line Databases (Programme),Fair Markets Group Summary - Consumer and Competition Policy,ITSA LTD,997606,1128
"Department for Business, Innovation and Skills","Department for Business, Innovation and Skills",09/06/2010,Grants - Non Statutory - Current - Other,Fair Markets Group Summary - Consumer and Competition Policy,OFFICE OF FAIR TRADING,998081,85750
"Department for Business, Innovation and Skills","Department for Business, Innovation and Skills",24/06/2010,On-Line Databases (Programme),Fair Markets Group Summary - Consumer and Competition Policy,OFFICE OF FAIR TRADING,999641,293974.6
"Department for Business, Innovation and Skills","Department for Business, Innovation and Skills",23/06/2010,Additions - Enterprise Equity Investments,"Innovation, Enterprise & Better Regulation Executive - Enterprise Directorate",BERR EQUITY INVESTMENT PROGRAMMES (CAPITAL),999419,190490.29
"Department for Business, Innovation and Skills","Department for Business, Innovation and Skills",23/06/2010,Additions - Enterprise Equity Investments,"Innovation, Enterprise & Better Regulation Executive - Enterprise Directorate",BERR EQUITY INVESTMENT PROGRAMMES (CAPITAL),999457,1129641.73
"Department for Business, Innovation and Skills","Department for Business, Innovation and Skills",30/06/2010,Grant in Aid - Current -Other,"Innovation, Enterprise & Better Regulation Executive - Enterprise Directorate",CAPITAL FOR ENTERPRISE LTD,1000030,393000
"Department for Business, Innovation and Skills","Department for Business, Innovation and Skills",08/06/2010,External Training (Programme),Business Group - Information Economy,DIGITAL OUTREACH LTD,997914,16525
"Department for Business, Innovation and Skills","Department for Business, Innovation and Skills",08/06/2010,External Training (Programme),Business Group - Information Economy,DIGITAL OUTREACH LTD,997914,47395
"Department for Business, Innovation and Skills","Department for Business, Innovation and Skills",10/06/2010,Sponsorship Support,Business Group - Information Economy,INDEPENDENT NETWORKS CO-OPERATIVE ASSOCIATION LTD,997259,25117.07
"Department for Business, Innovation and Skills","Department for Business, Innovation and Skills",10/06/2010,Printing (Programme),Business Group - Information Economy,PROMOTIONAL LOGISTICS LTD,998064,509.25
"Department for Business, Innovation and Skills","Department for Business, Innovation and Skills",24/06/2010,Economic Consultancy and Research,"Innovation, Enterprise & Better Regulation Executive - Innovation",ECONOMIC AND SOCIAL RESEARCH COUNCIL ESRC,999508,62500
"Department for Business, Innovation and Skills","Department for Business, Innovation and Skills",30/06/2010,Financial Advice and Services,"Innovation, Enterprise & Better Regulation Executive - Innovation",CAPITAL FOR ENTERPRISE LTD,998886,14391.15
"Department for Business, Innovation and Skills","Department for Business, Innovation and Skills",07/06/2010,External Training (Programme),"Innovation, Enterprise & Better Regulation Executive - Innovation",THE YOUNG FOUNDATION,997628,33500
"Department for Business, Innovation and Skills","Department for Business, Innovation and Skills",22/06/2010,Outsourced Technical Support (Programme),SCIENCE & RESEARCH GROUP - UK Space Agency,CLAIR PASSELLE,997669,-2162.3
"Department for Business, Innovation and Skills","Department for Business, Innovation and Skills",07/06/2010,Outsourced Technical Support (Programme),SCIENCE & RESEARCH GROUP - UK Space Agency,CLAIR PASSELLE,997666,2000
"Department for Business, Innovation and Skills","Department for Business, Innovation and Skills",07/06/2010,Outsourced Technical Support (Programme),SCIENCE & RESEARCH GROUP - UK Space Agency,CLAIR PASSELLE,997672,2000
"Department for Business, Innovation and Skills","Department for Business, Innovation and Skills",22/06/2010,Outsourced Technical Support (Programme),SCIENCE & RESEARCH GROUP - UK Space Agency,CLAIR PASSELLE,999326,2000
"Department for Business, Innovation and Skills","Department for Business, Innovation and Skills",22/06/2010,Outsourced Technical Support (Programme),SCIENCE & RESEARCH GROUP - UK Space Agency,CLAIR PASSELLE,999327,2000
"Department for Business, Innovation and Skills","Department for Business, Innovation and Skills",07/06/2010,Outsourced Technical Support (Programme),SCIENCE & RESEARCH GROUP - UK Space Agency,CLAIR PASSELLE,997668,2500
"Department for Business, Innovation and Skills","Department for Business, Innovation and Skills",15/06/2010,Outsourced Technical Support (Programme),SCIENCE & RESEARCH GROUP - UK Space Agency,DR KEVIN TANSEY,998487,500
"Department for Business, Innovation and Skills","Department for Business, Innovation and Skills",14/06/2010,Grant in Aid - Current -Other,SCIENCE & RESEARCH GROUP - UK Space Agency,FASHION AWARENESS DIRECT,998393,1250
"Department for Business, Innovation and Skills","Department for Business, Innovation and Skills",08/06/2010,Grant in Aid - Current -Other,SCIENCE & RESEARCH GROUP - UK Space Agency,IMPERIAL COLLEGE LONDON,997890,3947
"Department for Business, Innovation and Skills","Department for Business, Innovation and Skills",09/06/2010,Outsourced Technical Support (Programme),SCIENCE & RESEARCH GROUP - UK Space Agency,THE IDEAS FOUNDATION,997560,4950
"Department for Business, Innovation and Skills","Department for Business, Innovation and Skills",22/06/2010,Outsourced Technical Support (Programme),SCIENCE & RESEARCH GROUP - UK Space Agency,UNIVERSITY OF LEICESTER,998389,800
"Department for Business, Innovation and Skills","Department for Business, Innovation and Skills",22/06/2010,Outsourced Technical Support (Programme),SCIENCE & RESEARCH GROUP - UK Space Agency,UNIVERSITY OF LEICESTER,998389,3000
"Department for Business, Innovation and Skills","Department for Business, Innovation and Skills",14/06/2010,Outsourced Technical Support (Programme),SCIENCE & RESEARCH GROUP - UK Space Agency,ENVIRONMENT SYSTEMS LTD,998390,23147.5
"Department for Business, Innovation and Skills","Department for Business, Innovation and Skills",24/06/2010,Outsourced Technical Support (Programme),SCIENCE & RESEARCH GROUP - UK Space Agency,EOCI,999587,508.75
"Department for Business, Innovation and Skills","Department for Business, Innovation and Skills",08/06/2010,Outsourced Technical Support (Programme),SCIENCE & RESEARCH GROUP - UK Space Agency,EOCI,997841,1680.71
"Department for Business, Innovation and Skills","Department for Business, Innovation and Skills",25/06/2010,Misc Prog Expenses (DATA MIG),SCIENCE & RESEARCH GROUP - UK Space Agency,MET OFFICE,998656,-491956
"Department for Business, Innovation and Skills","Department for Business, Innovation and Skills",25/06/2010,Misc Prog Expenses (DATA MIG),SCIENCE & RESEARCH GROUP - UK Space Agency,MET OFFICE,998656,491956
"Department for Business, Innovation and Skills","Department for Business, Innovation and Skills",25/06/2010,Misc Prog Expenses (DATA MIG),SCIENCE & RESEARCH GROUP - UK Space Agency,MET OFFICE,998656,491956
"Department for Business, Innovation and Skills","Department for Business, Innovation and Skills",02/06/2010,Outsourced Technical Support (Programme),SCIENCE & RESEARCH GROUP - UK Space Agency,QINETIQ LTD,997262,1303.075
"Department for Business, Innovation and Skills","Department for Business, Innovation and Skills",15/06/2010,Outsourced Technical Support (Programme),SCIENCE & RESEARCH GROUP - UK Space Agency,UCL CONSULTANTS LTD,998012,5200
"Department for Business, Innovation and Skills","Department for Business, Innovation and Skills",11/06/2010,Grant in Aid - Current -Other,"Innovation, Enterprise & Better Regulation Executive - Innovation",DESIGN COUNCIL,998229,420000
"Department for Business, Innovation and Skills","Department for Business, Innovation and Skills",04/06/2010,Additions - Enterprise Equity Investments,"Innovation, Enterprise & Better Regulation Executive - Enterprise Directorate",BERR EQUITY INVESTMENT PROGRAMMES (CAPITAL),997573,31839.93
"Department for Business, Innovation and Skills","Department for Business, Innovation and Skills",04/06/2010,Additions - Enterprise Equity Investments,"Innovation, Enterprise & Better Regulation Executive - Enterprise Directorate",BERR EQUITY INVESTMENT PROGRAMMES (CAPITAL),997571,31839.93
"Department for Business, Innovation and Skills","Department for Business, Innovation and Skills",23/06/2010,Additions - Enterprise Equity Investments,"Innovation, Enterprise & Better Regulation Executive - Enterprise Directorate",BERR EQUITY INVESTMENT PROGRAMMES (CAPITAL),999456,97500
"Department for Business, Innovation and Skills","Department for Business, Innovation and Skills",22/06/2010,Additions - Enterprise Equity Investments,"Innovation, Enterprise & Better Regulation Executive - Enterprise Directorate",BERR EQUITY INVESTMENT PROGRAMMES (CAPITAL),999394,113502.39
"Department for Business, Innovation and Skills","Department for Business, Innovation and Skills",17/06/2010,Additions - Enterprise Equity Investments,"Innovation, Enterprise & Better Regulation Executive - Enterprise Directorate",BERR EQUITY INVESTMENT PROGRAMMES (CAPITAL),998802,113666.67
"Department for Business, Innovation and Skills","Department for Business, Innovation and Skills",17/06/2010,Additions - Enterprise Equity Investments,"Innovation, Enterprise & Better Regulation Executive - Enterprise Directorate",BERR EQUITY INVESTMENT PROGRAMMES (CAPITAL),998802,150000
"Department for Business, Innovation and Skills","Department for Business, Innovation and Skills",29/06/2010,Additions - Enterprise Equity Investments,"Innovation, Enterprise & Better Regulation Executive - Enterprise Directorate",BERR EQUITY INVESTMENT PROGRAMMES (CAPITAL),999978,266666.67
"Department for Business, Innovation and Skills","Department for Business, Innovation and Skills",22/06/2010,Additions - Enterprise Equity Investments,"Innovation, Enterprise & Better Regulation Executive - Enterprise Directorate",BERR EQUITY INVESTMENT PROGRAMMES (CAPITAL),999394,332523.67
"Department for Business, Innovation and Skills","Department for Business, Innovation and Skills",04/06/2010,Additions - Enterprise Equity Investments,"Innovation, Enterprise & Better Regulation Executive - Enterprise Directorate",BERR EQUITY INVESTMENT PROGRAMMES (CAPITAL),997573,468160.07
"Department for Business, Innovation and Skills","Department for Business, Innovation and Skills",22/06/2010,Additions - Enterprise Equity Investments,"Innovation, Enterprise & Better Regulation Executive - Enterprise Directorate",BERR EQUITY INVESTMENT PROGRAMMES (CAPITAL),999394,1000000
"Department for Business, Innovation and Skills","Department for Business, Innovation and Skills",09/06/2010,Purchase of  Advertising and Publicity (Programme),Fair Markets Group Summary - Employment Relations,BOUNTY UK LTD,997486,9350
"Department for Business, Innovation and Skills","Department for Business, Innovation and Skills",08/06/2010,Moving/Storage Costs (Programme),Fair Markets Group Summary - Europe Directorate,CROWN WORLDWIDE LTD,997858,906.67
"Department for Business, Innovation and Skills","Department for Business, Innovation and Skills",03/06/2010,Moving/Storage Costs (Programme),Fair Markets Group Summary - Europe Directorate,CROWN WORLDWIDE LTD,997420,1668
"Department for Business, Innovation and Skills","Department for Business, Innovation and Skills",07/06/2010,Accommodation Rentals (Programme),Fair Markets Group Summary - Europe Directorate,DONA MARIA JESUS BIELZA DIAZ-CANEJA,997307,1060.25
"Department for Business, Innovation and Skills","Department for Business, Innovation and Skills",16/06/2010,Grants - Non Statutory - Current - Other,Fair Markets Group Summary - Consumer and Competition Policy,LEICESTER MONEY ADVICE LTD,998729,606010
"Department for Business, Innovation and Skills","Department for Business, Innovation and Skills",17/06/2010,Grants - Non Statutory - Current - Other,Fair Markets Group Summary - Consumer and Competition Policy,CITIZENS ADVICE BUREAU,998706,791815
"Department for Business, Innovation and Skills","Department for Business, Innovation and Skills",17/06/2010,Grants - Non Statutory - Current - Other,Fair Markets Group Summary - Consumer and Competition Policy,CITIZENS ADVICE BUREAU,998701,650371
"Department for Business, Innovation and Skills","Department for Business, Innovation and Skills",17/06/2010,Grants - Non Statutory - Current - Other,Fair Markets Group Summary - Consumer and Competition Policy,CITIZENS ADVICE BUREAU,998694,262001
"Department for Business, Innovation and Skills","Department for Business, Innovation and Skills",17/06/2010,Grants - Non Statutory - Current - Other,Fair Markets Group Summary - Consumer and Competition Policy,CITIZENS ADVICE BUREAU,998702,326035
"Department for Business, Innovation and Skills","Department for Business, Innovation and Skills",16/06/2010,Grants - Non Statutory - Current - Other,Fair Markets Group Summary - Consumer and Competition Policy,CITIZENS ADVICE KNOWSLEY,998727,409945
"Department for Business, Innovation and Skills","Department for Business, Innovation and Skills",16/06/2010,Grants - Non Statutory - Current - Other,Fair Markets Group Summary - Consumer and Competition Policy,COMMUNITY FINANCE SOLUTIONS,998712,182052
"Department for Business, Innovation and Skills","Department for Business, Innovation and Skills",17/06/2010,Grants - Non Statutory - Current - Other,Fair Markets Group Summary - Consumer and Competition Policy,CITIZENS ADVICE BUREAU,998703,167099
"Department for Business, Innovation and Skills","Department for Business, Innovation and Skills",17/06/2010,Grants - Non Statutory - Current - Other,Fair Markets Group Summary - Consumer and Competition Policy,CITIZENS ADVICE BUREAU,998695,143261
"Department for Business, Innovation and Skills","Department for Business, Innovation and Skills",17/06/2010,Grants - Non Statutory - Current - Other,Fair Markets Group Summary - Consumer and Competition Policy,CITIZENS ADVICE BUREAU,998700,816011
"Department for Business, Innovation and Skills","Department for Business, Innovation and Skills",17/06/2010,Grants - Non Statutory - Current - Other,Fair Markets Group Summary - Consumer and Competition Policy,CITIZENS ADVICE BUREAU,998704,176046
"Department for Business, Innovation and Skills","Department for Business, Innovation and Skills",16/06/2010,Grants - Non Statutory - Current - Other,Fair Markets Group Summary - Consumer and Competition Policy,BRISTOL DEBT ADVICE CENTRE,998692,196757
"Department for Business, Innovation and Skills","Department for Business, Innovation and Skills",16/06/2010,Grants - Non Statutory - Current - Other,Fair Markets Group Summary - Consumer and Competition Policy,TOYNBEE HALL,998690,866015.99
"Department for Business, Innovation and Skills","Department for Business, Innovation and Skills",17/06/2010,Grants - Non Statutory - Current - Other,Fair Markets Group Summary - Consumer and Competition Policy,CITIZENS ADVICE BUREAU,998705,512821
"Department for Business, Innovation and Skills","Department for Business, Innovation and Skills",17/06/2010,Grants - Non Statutory - Current - Other,Fair Markets Group Summary - Consumer and Competition Policy,CITIZENS ADVICE BUREAU,998707,848776
"Department for Business, Innovation and Skills","Department for Business, Innovation and Skills",17/06/2010,Grants - Non Statutory - Current - Other,Fair Markets Group Summary - Consumer and Competition Policy,CITIZENS ADVICE BUREAU,998691,48155
"Department for Business, Innovation and Skills","Department for Business, Innovation and Skills",17/06/2010,Grants - Non Statutory - Current - Other,Fair Markets Group Summary - Consumer and Competition Policy,CITIZENS ADVICE BUREAU,998697,96913
"Department for Business, Innovation and Skills","Department for Business, Innovation and Skills",17/06/2010,Other Accommodation Charges (Programme),Universities and Skills Group - Further Education & Skills Investment,HEWITT ASSOCIATES LTD,998842,948.07
"Department for Business, Innovation and Skills","Department for Business, Innovation and Skills",30/06/2010,Grants - Non Statutory - Current - Other,Universities and Skills Group - Further Education,ECCTIS LTD,999816,10134.375
"Department for Business, Innovation and Skills","Department for Business, Innovation and Skills",17/06/2010,Grants - Non Statutory - Current - Other,Universities and Skills Group - Further Education,INSTITUTE FOR LEARNING (PCET),998774,669570
"Department for Business, Innovation and Skills","Department for Business, Innovation and Skills",16/06/2010,Grants - Non Statutory - Current - Other,Universities and Skills Group - Further Education,LIFELONG LEARNING UK (LLUK),998663,285854
"Department for Business, Innovation and Skills","Department for Business, Innovation and Skills",29/06/2010,Grants - Non Statutory - Current - Other,Universities and Skills Group - Further Education,STANDARDS VERIFICATION UK LTD,999893,40738
"Department for Business, Innovation and Skills","Department for Business, Innovation and Skills",29/06/2010,Outsourced Programme Management Services,Universities and Skills Group - Further Education,BUSINESS IN THE COMMUNITY,999359,25000
"Department for Business, Innovation and Skills","Department for Business, Innovation and Skills",01/06/2010,Outsourced Programme Management Services,"Legal, People & Communications Group - Priority Projects Drectorate",BUSINESS EVOLUTION ADVANCEMENT & TRAINING LTD,997231,4525.59475
"Department for Business, Innovation and Skills","Department for Business, Innovation and Skills",15/06/2010,Outsourced Programme Management Services,"Legal, People & Communications Group - Priority Projects Drectorate",CHARLENE COLLISON,998431,1399.7
"Department for Business, Innovation and Skills","Department for Business, Innovation and Skills",21/06/2010,Outsourced Programme Management Services,"Legal, People & Communications Group - Priority Projects Drectorate",FUJITSU SERVICES LTD,999183,-3126
"Department for Business, Innovation and Skills","Department for Business, Innovation and Skills",21/06/2010,Outsourced Programme Management Services,"Legal, People & Communications Group - Priority Projects Drectorate",FUJITSU SERVICES LTD,999183,3126
"Department for Business, Innovation and Skills","Department for Business, Innovation and Skills",21/06/2010,Outsourced Programme Management Services,"Legal, People & Communications Group - Priority Projects Drectorate",FUJITSU SERVICES LTD,999183,3126
"Department for Business, Innovation and Skills","Department for Business, Innovation and Skills",21/06/2010,Outsourced Programme Management Services,"Legal, People & Communications Group - Priority Projects Drectorate",FUJITSU SERVICES LTD,999188,4449.2
"Department for Business, Innovation and Skills","Department for Business, Innovation and Skills",21/06/2010,Outsourced Programme Management Services,"Legal, People & Communications Group - Priority Projects Drectorate",FUJITSU SERVICES LTD,999158,5800.47
"Department for Business, Innovation and Skills","Department for Business, Innovation and Skills",21/06/2010,Outsourced Programme Management Services,"Legal, People & Communications Group - Priority Projects Drectorate",FUJITSU SERVICES LTD,999186,7623
"Department for Business, Innovation and Skills","Department for Business, Innovation and Skills",02/06/2010,External Legal Advice,"Innovation, Enterprise & Better Regulation Executive - Enterprise Directorate",ADDLESHAW GODDARD LLP,996305,3612.82
"Department for Business, Innovation and Skills","Department for Business, Innovation and Skills",01/06/2010,Business Management Advice,"Innovation, Enterprise & Better Regulation Executive - Enterprise Directorate",DELOITTE MCS LTD,996829,15409.86
"Department for Business, Innovation and Skills","Department for Business, Innovation and Skills",01/06/2010,Business Management Advice,"Innovation, Enterprise & Better Regulation Executive - Enterprise Directorate",DELOITTE MCS LTD,996828,35302.9
"Department for Business, Innovation and Skills","Department for Business, Innovation and Skills",15/06/2010,Grant in Aid - Current -Other,Universities and Skills Group - Higher Education,HIGHER EDUCATION FUNDING COUNCIL FOR ENGLAND,998145,681700000
"Department for Business, Innovation and Skills","Department for Business, Innovation and Skills",15/06/2010,Grants - Non Statutory - Current - Other,Universities and Skills Group - Learners,STUDENT LOANS COMPANY LIMITED,998114,9007252
"Department for Business, Innovation and Skills","Department for Business, Innovation and Skills",15/06/2010,Grants - Non Statutory - Current - Other,Universities and Skills Group - Learners,STUDENT LOANS COMPANY LIMITED,998114,3772749
"Department for Business, Innovation and Skills","Department for Business, Innovation and Skills",10/06/2010,Grants - Non Statutory - Current - Other,Universities and Skills Group - Learners,FAMILY ACTION,998168,-60000
"Department for Business, Innovation and Skills","Department for Business, Innovation and Skills",10/06/2010,Grants - Non Statutory - Current - Other,Universities and Skills Group - Learners,FAMILY ACTION,998168,6000
"Department for Business, Innovation and Skills","Department for Business, Innovation and Skills",10/06/2010,Grants - Non Statutory - Current - Other,Universities and Skills Group - Learners,FAMILY ACTION,998168,60000
"Department for Business, Innovation and Skills","Department for Business, Innovation and Skills",22/06/2010,Departmental Sponsored Training (Programme),Universities and Skills Group - Learners,MINISTRY OF DEFENCE,999009,1225
"Department for Business, Innovation and Skills","Department for Business, Innovation and Skills",22/06/2010,Departmental Sponsored Training (Programme),Universities and Skills Group - Learners,MINISTRY OF DEFENCE,999010,2225
"Department for Business, Innovation and Skills","Department for Business, Innovation and Skills",08/06/2010,Consultancy Advice Provided From Third Parties,Universities and Skills Group - Learners,SHM PRODUCTIONS LTD,997826,17365.90075
"Department for Business, Innovation and Skills","Department for Business, Innovation and Skills",07/06/2010,Non-GIA Funding of Bodies (Departmental and Non-Departmental),Fair Markets Group Summary - Insolvency Service,THE INSOLVENCY SERVICE,997534,3200000
"Department for Business, Innovation and Skills","Department for Business, Innovation and Skills",17/06/2010,Criminal Law and Prosecution Work,"Legal, People & Communications Group - Legal",DARBYS,998779,555.22275
"Department for Business, Innovation and Skills","Department for Business, Innovation and Skills",24/06/2010,Criminal Law and Prosecution Work,"Legal, People & Communications Group - Legal",DOBSON & SLEEMAN,999445,594.4325
"Department for Business, Innovation and Skills","Department for Business, Innovation and Skills",04/06/2010,Criminal Law and Prosecution Work,"Legal, People & Communications Group - Legal",ELVIN & CO,997405,861.275
"Department for Business, Innovation and Skills","Department for Business, Innovation and Skills",02/06/2010,Criminal Law and Prosecution Work,"Legal, People & Communications Group - Legal",ELVIN & CO,996984,1375.91325
"Department for Business, Innovation and Skills","Department for Business, Innovation and Skills",15/06/2010,Criminal Law and Prosecution Work,"Legal, People & Communications Group - Legal",FABER & CO,998455,3192.86275
"Department for Business, Innovation and Skills","Department for Business, Innovation and Skills",24/06/2010,Criminal Law and Prosecution Work,"Legal, People & Communications Group - Legal",HARRIS CUFFARO & NICHOLS,998904,820.056
"Department for Business, Innovation and Skills","Department for Business, Innovation and Skills",04/06/2010,Criminal Law and Prosecution Work,"Legal, People & Communications Group - Legal",HARRIS CUFFARO & NICHOLS,997393,5077.28075
"Department for Business, Innovation and Skills","Department for Business, Innovation and Skills",11/06/2010,Criminal Law and Prosecution Work,"Legal, People & Communications Group - Legal",LEE FISH,998006,680.92425
"Department for Business, Innovation and Skills","Department for Business, Innovation and Skills",17/06/2010,Criminal Law and Prosecution Work,"Legal, People & Communications Group - Legal",MCWILLIAM BUCK LTD T/A DAVID BUCK & CO,998757,1158.879
"Department for Business, Innovation and Skills","Department for Business, Innovation and Skills",17/06/2010,Criminal Law and Prosecution Work,"Legal, People & Communications Group - Legal",MCWILLIAM BUCK LTD T/A DAVID BUCK & CO,998761,1559.883
"Department for Business, Innovation and Skills","Department for Business, Innovation and Skills",17/06/2010,Criminal Law and Prosecution Work,"Legal, People & Communications Group - Legal",MCWILLIAM BUCK LTD T/A DAVID BUCK & CO,998765,2738.737
"Department for Business, Innovation and Skills","Department for Business, Innovation and Skills",17/06/2010,Criminal Law and Prosecution Work,"Legal, People & Communications Group - Legal",MCWILLIAM BUCK LTD T/A DAVID BUCK & CO,998754,3677.73825
"Department for Business, Innovation and Skills","Department for Business, Innovation and Skills",03/06/2010,Criminal Law and Prosecution Work,"Legal, People & Communications Group - Legal",MLM,997399,1289.97375
"Department for Business, Innovation and Skills","Department for Business, Innovation and Skills",09/06/2010,Criminal Law and Prosecution Work,"Legal, People & Communications Group - Legal",MORECROFTS LLP,997877,686.26
"Department for Business, Innovation and Skills","Department for Business, Innovation and Skills",09/06/2010,Criminal Law and Prosecution Work,"Legal, People & Communications Group - Legal",MORECROFTS LLP,997873,1668.406
"Department for Business, Innovation and Skills","Department for Business, Innovation and Skills",09/06/2010,Criminal Law and Prosecution Work,"Legal, People & Communications Group - Legal",STERNBERG REED,997951,1031.19175
"Department for Business, Innovation and Skills","Department for Business, Innovation and Skills",21/06/2010,Criminal Law and Prosecution Work,"Legal, People & Communications Group - Legal",WALLER NEEDHAM & GREEN,999129,1461.59425
"Department for Business, Innovation and Skills","Department for Business, Innovation and Skills",24/06/2010,Criminal Law and Prosecution Work,"Legal, People & Communications Group - Legal",ALEXANDER ROOKE,999443,1078.462
"Department for Business, Innovation and Skills","Department for Business, Innovation and Skills",10/06/2010,Criminal Law and Prosecution Work,"Legal, People & Communications Group - Legal",ANDREW LOCKHART,998013,1598
"Department for Business, Innovation and Skills","Department for Business, Innovation and Skills",10/06/2010,Criminal Law and Prosecution Work,"Legal, People & Communications Group - Legal",ANDREW MARSHALL,998035,844.53125
"Department for Business, Innovation and Skills","Department for Business, Innovation and Skills",10/06/2010,Criminal Law and Prosecution Work,"Legal, People & Communications Group - Legal",CAMERON BROWN,998002,1198.5
"Department for Business, Innovation and Skills","Department for Business, Innovation and Skills",15/06/2010,Criminal Law and Prosecution Work,"Legal, People & Communications Group - Legal",CAMERON BROWN,998467,4117.435
"Department for Business, Innovation and Skills","Department for Business, Innovation and Skills",16/06/2010,Criminal Law and Prosecution Work,"Legal, People & Communications Group - Legal",CARL HARRISON,998499,-249.9985
"Department for Business, Innovation and Skills","Department for Business, Innovation and Skills",16/06/2010,Criminal Law and Prosecution Work,"Legal, People & Communications Group - Legal",CARL HARRISON,998499,9047.5
"Department for Business, Innovation and Skills","Department for Business, Innovation and Skills",11/06/2010,Criminal Law and Prosecution Work,"Legal, People & Communications Group - Legal",CLAIRE HARDEN,998246,694.425
"Department for Business, Innovation and Skills","Department for Business, Innovation and Skills",16/06/2010,Criminal Law and Prosecution Work,"Legal, People & Communications Group - Legal",DIANA MAUDSLAY,998244,976.66
"Department for Business, Innovation and Skills","Department for Business, Innovation and Skills",16/06/2010,Criminal Law and Prosecution Work,"Legal, People & Communications Group - Legal",MARK BRYANT - HERON,998666,5434.38675
"Department for Business, Innovation and Skills","Department for Business, Innovation and Skills",11/06/2010,Criminal Law and Prosecution Work,"Legal, People & Communications Group - Legal",MARK SEYMOUR,998240,-184.005
"Department for Business, Innovation and Skills","Department for Business, Innovation and Skills",02/06/2010,Criminal Law and Prosecution Work,"Legal, People & Communications Group - Legal",MARTIN REID,997032,523.25
"Department for Business, Innovation and Skills","Department for Business, Innovation and Skills",11/06/2010,Criminal Law and Prosecution Work,"Legal, People & Communications Group - Legal",ROBERT ALTHAM,997929,9125.52
"Department for Business, Innovation and Skills","Department for Business, Innovation and Skills",10/06/2010,Criminal Law and Prosecution Work,"Legal, People & Communications Group - Legal",SARA LAWSON,998093,1603.875
"Department for Business, Innovation and Skills","Department for Business, Innovation and Skills",11/06/2010,Criminal Law and Prosecution Work,"Legal, People & Communications Group - Legal",CARPE-DATUM,998232,2993.9
"Department for Business, Innovation and Skills","Department for Business, Innovation and Skills",21/06/2010,Criminal Law and Prosecution Work,"Legal, People & Communications Group - Legal",CARPE-DATUM,999128,3684.8
"Department for Business, Innovation and Skills","Department for Business, Innovation and Skills",16/06/2010,Criminal Law and Prosecution Work,"Legal, People & Communications Group - Legal",EXPERIAN LTD,998615,1387.26375
"Department for Business, Innovation and Skills","Department for Business, Innovation and Skills",09/06/2010,Criminal Law and Prosecution Work,"Legal, People & Communications Group - Legal",KJB Partners Ltd,997931,-3004.663
"Department for Business, Innovation and Skills","Department for Business, Innovation and Skills",17/06/2010,Criminal Law and Prosecution Work,"Legal, People & Communications Group - Legal",KJB Partners Ltd,997883,519.35
"Department for Business, Innovation and Skills","Department for Business, Innovation and Skills",09/06/2010,Criminal Law and Prosecution Work,"Legal, People & Communications Group - Legal",KJB Partners Ltd,997880,1869.66
"Department for Business, Innovation and Skills","Department for Business, Innovation and Skills",02/06/2010,Criminal Law and Prosecution Work,"Legal, People & Communications Group - Legal",KJB Partners Ltd,996724,1982.46
"Department for Business, Innovation and Skills","Department for Business, Innovation and Skills",09/06/2010,Criminal Law and Prosecution Work,"Legal, People & Communications Group - Legal",KJB Partners Ltd,997894,2151.19
"Department for Business, Innovation and Skills","Department for Business, Innovation and Skills",09/06/2010,Criminal Law and Prosecution Work,"Legal, People & Communications Group - Legal",KJB Partners Ltd,997931,2887.21
"Department for Business, Innovation and Skills","Department for Business, Innovation and Skills",09/06/2010,Criminal Law and Prosecution Work,"Legal, People & Communications Group - Legal",KJB Partners Ltd,997931,3004.663
"Department for Business, Innovation and Skills","Department for Business, Innovation and Skills",09/06/2010,Criminal Law and Prosecution Work,"Legal, People & Communications Group - Legal",KJB Partners Ltd,997881,4096.60225
"Department for Business, Innovation and Skills","Department for Business, Innovation and Skills",10/06/2010,Criminal Law and Prosecution Work,"Legal, People & Communications Group - Legal",MENDIP MEDIA GROUP LTD,998154,1814.78
"Department for Business, Innovation and Skills","Department for Business, Innovation and Skills",10/06/2010,Criminal Law and Prosecution Work,"Legal, People & Communications Group - Legal",RSM TENON LTD,997957,31316.5465
"Department for Business, Innovation and Skills","Department for Business, Innovation and Skills",09/06/2010,Criminal Law and Prosecution Work,"Legal, People & Communications Group - Legal",THE FORENSIC SCIENCE SERVICE,997878,1236
"Department for Business, Innovation and Skills","Department for Business, Innovation and Skills",15/06/2010,Criminal Law and Prosecution Work,"Legal, People & Communications Group - Legal",ZYLAB UK LTD,998462,994.05
"Department for Business, Innovation and Skills","Department for Business, Innovation and Skills",18/06/2010,Economic Consultancy and Research,"Innovation, Enterprise & Better Regulation Executive - Innovation",COMPANY REPORTING (BESPOKE DATABASES) LTD,998892,100000
"Department for Business, Innovation and Skills","Department for Business, Innovation and Skills",10/06/2010,Translation Services (Programme),"Innovation, Enterprise & Better Regulation Executive - Innovation",FOREIGN AND COMMONWEALTH OFFICE (FCO),998140,2100
"Department for Business, Innovation and Skills","Department for Business, Innovation and Skills",14/06/2010,Capital Grants to Local Authorities - Asset Creation,Business Group - Economic Development Directorate,THE LONDON DEVELOPMENT AGENCY LTD,998177,43000000
"Department for Business, Innovation and Skills","Department for Business, Innovation and Skills",30/06/2010,Capital Grants - Other,"Business Group - Solutions for Business, Low Carbon & Services",ALLEN & OVERY LLP,999890,2821.1045
"Department for Business, Innovation and Skills","Department for Business, Innovation and Skills",16/06/2010,Grants - Non Statutory - Current - Other,Business Group - Advanced Manufacturing Industries,EAST MIDLANDS DEVELOPMENT AGENCY,998746,28867
"Department for Business, Innovation and Skills","Department for Business, Innovation and Skills",16/06/2010,Grants - Non Statutory - Current - Other,Business Group - Advanced Manufacturing Industries,NORTHWEST REGIONAL DEVELOPMENT AGENCY,997976,156300
"Department for Business, Innovation and Skills","Department for Business, Innovation and Skills",14/06/2010,London Development Agency - Current Statutory Grant,Business Group - Economic Development Directorate,THE LONDON DEVELOPMENT AGENCY LTD,998177,12000000
"Department for Business, Innovation and Skills","Department for Business, Innovation and Skills",17/06/2010,Cash Expenditure during the Year - SFLG,"Innovation, Enterprise & Better Regulation Executive - Enterprise Directorate",BERR SFLG PAYMENT TO LENDERS,998684,1629.82
"Department for Business, Innovation and Skills","Department for Business, Innovation and Skills",17/06/2010,Cash Expenditure during the Year - SFLG,"Innovation, Enterprise & Better Regulation Executive - Enterprise Directorate",BERR SFLG PAYMENT TO LENDERS,998688,3101.78
"Department for Business, Innovation and Skills","Department for Business, Innovation and Skills",17/06/2010,Cash Expenditure during the Year - SFLG,"Innovation, Enterprise & Better Regulation Executive - Enterprise Directorate",BERR SFLG PAYMENT TO LENDERS,998683,3105
"Department for Business, Innovation and Skills","Department for Business, Innovation and Skills",17/06/2010,Cash Expenditure during the Year - SFLG,"Innovation, Enterprise & Better Regulation Executive - Enterprise Directorate",BERR SFLG PAYMENT TO LENDERS,998682,9480.3
"Department for Business, Innovation and Skills","Department for Business, Innovation and Skills",17/06/2010,Cash Expenditure during the Year - SFLG,"Innovation, Enterprise & Better Regulation Executive - Enterprise Directorate",BERR SFLG PAYMENT TO LENDERS,998678,31590.76
"Department for Business, Innovation and Skills","Department for Business, Innovation and Skills",17/06/2010,Cash Expenditure during the Year - SFLG,"Innovation, Enterprise & Better Regulation Executive - Enterprise Directorate",BERR SFLG PAYMENT TO LENDERS,998686,67664.95
"Department for Business, Innovation and Skills","Department for Business, Innovation and Skills",17/06/2010,Cash Expenditure during the Year - SFLG,"Innovation, Enterprise & Better Regulation Executive - Enterprise Directorate",BERR SFLG PAYMENT TO LENDERS,998679,69023.58
"Department for Business, Innovation and Skills","Department for Business, Innovation and Skills",17/06/2010,Cash Expenditure during the Year - SFLG,"Innovation, Enterprise & Better Regulation Executive - Enterprise Directorate",BERR SFLG PAYMENT TO LENDERS,998680,188406.88
"Department for Business, Innovation and Skills","Department for Business, Innovation and Skills",17/06/2010,Cash Expenditure during the Year - SFLG,"Innovation, Enterprise & Better Regulation Executive - Enterprise Directorate",BERR SFLG PAYMENT TO LENDERS,998685,285491.78
"Department for Business, Innovation and Skills","Department for Business, Innovation and Skills",17/06/2010,Cash Expenditure during the Year - SFLG,"Innovation, Enterprise & Better Regulation Executive - Enterprise Directorate",BERR SFLG PAYMENT TO LENDERS,998677,299060.4
"Department for Business, Innovation and Skills","Department for Business, Innovation and Skills",04/06/2010,Grants - Statutory - Current - Other,"Innovation, Enterprise & Better Regulation Executive - Enterprise Directorate",COMMUNITY DEVELOPMENT FINANCE ASSOCIATION (CDFA),997547,71072
"Department for Business, Innovation and Skills","Department for Business, Innovation and Skills",22/06/2010,Grants - Statutory - Current - Other,"Innovation, Enterprise & Better Regulation Executive - Enterprise Directorate",COMMUNITY DEVELOPMENT FINANCE ASSOCIATION (CDFA),999329,137645
"Department for Business, Innovation and Skills","Department for Business, Innovation and Skills",28/06/2010,Media and Design Services,"Innovation, Enterprise & Better Regulation Executive - Enterprise Directorate",SERCO LTD,999578,67356.75
"Department for Business, Innovation and Skills","Department for Business, Innovation and Skills",28/06/2010,Media and Design Services,"Innovation, Enterprise & Better Regulation Executive - Enterprise Directorate",SERCO LTD,999579,67356.75
"Department for Business, Innovation and Skills","Department for Business, Innovation and Skills",17/06/2010,Recovery of Loan Guarantees,"Innovation, Enterprise & Better Regulation Executive - Enterprise Directorate",BERR SFLG PAYMENT TO LENDERS,998677,-299060.4
"Department for Business, Innovation and Skills","Department for Business, Innovation and Skills",17/06/2010,Recovery of Loan Guarantees,"Innovation, Enterprise & Better Regulation Executive - Enterprise Directorate",BERR SFLG PAYMENT TO LENDERS,998685,-219764.43
"Department for Business, Innovation and Skills","Department for Business, Innovation and Skills",17/06/2010,Recovery of Loan Guarantees,"Innovation, Enterprise & Better Regulation Executive - Enterprise Directorate",BERR SFLG PAYMENT TO LENDERS,998680,-188406.88
"Department for Business, Innovation and Skills","Department for Business, Innovation and Skills",17/06/2010,Recovery of Loan Guarantees,"Innovation, Enterprise & Better Regulation Executive - Enterprise Directorate",BERR SFLG PAYMENT TO LENDERS,998680,-163016.69
"Department for Business, Innovation and Skills","Department for Business, Innovation and Skills",17/06/2010,Recovery of Loan Guarantees,"Innovation, Enterprise & Better Regulation Executive - Enterprise Directorate",BERR SFLG PAYMENT TO LENDERS,998677,-158145.96
"Department for Business, Innovation and Skills","Department for Business, Innovation and Skills",17/06/2010,Recovery of Loan Guarantees,"Innovation, Enterprise & Better Regulation Executive - Enterprise Directorate",BERR SFLG PAYMENT TO LENDERS,998679,-69023.58
"Department for Business, Innovation and Skills","Department for Business, Innovation and Skills",17/06/2010,Recovery of Loan Guarantees,"Innovation, Enterprise & Better Regulation Executive - Enterprise Directorate",BERR SFLG PAYMENT TO LENDERS,998685,-65727.35
"Department for Business, Innovation and Skills","Department for Business, Innovation and Skills",17/06/2010,Recovery of Loan Guarantees,"Innovation, Enterprise & Better Regulation Executive - Enterprise Directorate",BERR SFLG PAYMENT TO LENDERS,998686,-36417.55
"Department for Business, Innovation and Skills","Department for Business, Innovation and Skills",17/06/2010,Recovery of Loan Guarantees,"Innovation, Enterprise & Better Regulation Executive - Enterprise Directorate",BERR SFLG PAYMENT TO LENDERS,998678,-31590.76
"Department for Business, Innovation and Skills","Department for Business, Innovation and Skills",17/06/2010,Recovery of Loan Guarantees,"Innovation, Enterprise & Better Regulation Executive - Enterprise Directorate",BERR SFLG PAYMENT TO LENDERS,998686,-31247.4
"Department for Business, Innovation and Skills","Department for Business, Innovation and Skills",17/06/2010,Recovery of Loan Guarantees,"Innovation, Enterprise & Better Regulation Executive - Enterprise Directorate",BERR SFLG PAYMENT TO LENDERS,998680,-25390.19
"Department for Business, Innovation and Skills","Department for Business, Innovation and Skills",17/06/2010,Recovery of Loan Guarantees,"Innovation, Enterprise & Better Regulation Executive - Enterprise Directorate",BERR SFLG PAYMENT TO LENDERS,998682,-9480.3
"Department for Business, Innovation and Skills","Department for Business, Innovation and Skills",17/06/2010,Recovery of Loan Guarantees,"Innovation, Enterprise & Better Regulation Executive - Enterprise Directorate",BERR SFLG PAYMENT TO LENDERS,998683,-3105
"Department for Business, Innovation and Skills","Department for Business, Innovation and Skills",17/06/2010,Recovery of Loan Guarantees,"Innovation, Enterprise & Better Regulation Executive - Enterprise Directorate",BERR SFLG PAYMENT TO LENDERS,998684,-1629.82
"Department for Business, Innovation and Skills","Department for Business, Innovation and Skills",17/06/2010,Recovery of Loan Guarantees,"Innovation, Enterprise & Better Regulation Executive - Enterprise Directorate",BERR SFLG PAYMENT TO LENDERS,998683,3105
"Department for Business, Innovation and Skills","Department for Business, Innovation and Skills",17/06/2010,Recovery of Loan Guarantees,"Innovation, Enterprise & Better Regulation Executive - Enterprise Directorate",BERR SFLG PAYMENT TO LENDERS,998682,9480.3
"Department for Business, Innovation and Skills","Department for Business, Innovation and Skills",17/06/2010,Recovery of Loan Guarantees,"Innovation, Enterprise & Better Regulation Executive - Enterprise Directorate",BERR SFLG PAYMENT TO LENDERS,998680,25390.19
"Department for Business, Innovation and Skills","Department for Business, Innovation and Skills",17/06/2010,Recovery of Loan Guarantees,"Innovation, Enterprise & Better Regulation Executive - Enterprise Directorate",BERR SFLG PAYMENT TO LENDERS,998686,31247.4
"Department for Business, Innovation and Skills","Department for Business, Innovation and Skills",17/06/2010,Recovery of Loan Guarantees,"Innovation, Enterprise & Better Regulation Executive - Enterprise Directorate",BERR SFLG PAYMENT TO LENDERS,998685,65727.35
"Department for Business, Innovation and Skills","Department for Business, Innovation and Skills",17/06/2010,Recovery of Loan Guarantees,"Innovation, Enterprise & Better Regulation Executive - Enterprise Directorate",BERR SFLG PAYMENT TO LENDERS,998680,188406.88
"Department for Business, Innovation and Skills","Department for Business, Innovation and Skills",17/06/2010,Recovery of Loan Guarantees,"Innovation, Enterprise & Better Regulation Executive - Enterprise Directorate",BERR SFLG PAYMENT TO LENDERS,998677,299060.4
"Department for Business, Innovation and Skills","Department for Business, Innovation and Skills",17/06/2010,Recovery of Loan Guarantees,"Innovation, Enterprise & Better Regulation Executive - Enterprise Directorate",BERR SFLG PAYMENT TO LENDERS,998677,-140914.44
"Department for Business, Innovation and Skills","Department for Business, Innovation and Skills",17/06/2010,Recovery of Loan Guarantees,"Innovation, Enterprise & Better Regulation Executive - Enterprise Directorate",BERR SFLG PAYMENT TO LENDERS,998685,-65727.35
"Department for Business, Innovation and Skills","Department for Business, Innovation and Skills",17/06/2010,Recovery of Loan Guarantees,"Innovation, Enterprise & Better Regulation Executive - Enterprise Directorate",BERR SFLG PAYMENT TO LENDERS,998686,-31247.4
"Department for Business, Innovation and Skills","Department for Business, Innovation and Skills",17/06/2010,Recovery of Loan Guarantees,"Innovation, Enterprise & Better Regulation Executive - Enterprise Directorate",BERR SFLG PAYMENT TO LENDERS,998680,-25390.19
"Department for Business, Innovation and Skills","Department for Business, Innovation and Skills",17/06/2010,Recovery of Loan Guarantees,"Innovation, Enterprise & Better Regulation Executive - Enterprise Directorate",BERR SFLG PAYMENT TO LENDERS,998682,-9480.3
"Department for Business, Innovation and Skills","Department for Business, Innovation and Skills",17/06/2010,Recovery of Loan Guarantees,"Innovation, Enterprise & Better Regulation Executive - Enterprise Directorate",BERR SFLG PAYMENT TO LENDERS,998683,-3105
"Department for Business, Innovation and Skills","Department for Business, Innovation and Skills",17/06/2010,Recovery of Loan Guarantees,"Innovation, Enterprise & Better Regulation Executive - Enterprise Directorate",BERR SFLG PAYMENT TO LENDERS,998688,-3101.78
"Department for Business, Innovation and Skills","Department for Business, Innovation and Skills",22/06/2010,Accommodation Rentals (Programme),Finance & Commercial Group - Information and Workplace Strategies,ALLSOP COMMERCIAL MANAGEMENT LTD,999311,28630.34375
"Department for Business, Innovation and Skills","Department for Business, Innovation and Skills",09/06/2010,Rates (Programme),Finance & Commercial Group - Information and Workplace Strategies,BOURNEMOUTH BOROUGH COUNCIL,998038,49644.87
"Department for Business, Innovation and Skills","Department for Business, Innovation and Skills",10/06/2010,Electricity (Programme),Finance & Commercial Group - Information and Workplace Strategies,BRITISH ENERGY DIRECT LTD,998066,10089.73675
"Department for Business, Innovation and Skills","Department for Business, Innovation and Skills",25/06/2010,Electricity (Programme),Finance & Commercial Group - Information and Workplace Strategies,BRITISH ENERGY DIRECT LTD,999739,10612.412
"Department for Business, Innovation and Skills","Department for Business, Innovation and Skills",24/06/2010,Gas (Programme),Finance & Commercial Group - Information and Workplace Strategies,BRITISH GAS BUSINESS SERVICES LTD,999633,2178.25025
"Department for Business, Innovation and Skills","Department for Business, Innovation and Skills",24/06/2010,Gas (Programme),Finance & Commercial Group - Information and Workplace Strategies,BRITISH GAS BUSINESS SERVICES LTD,999497,2288.712
"Department for Business, Innovation and Skills","Department for Business, Innovation and Skills",10/06/2010,Rates (Programme),Finance & Commercial Group - Information and Workplace Strategies,BROADLAND DISTRICT COUNCIL,998124,17248.49
"Department for Business, Innovation and Skills","Department for Business, Innovation and Skills",30/06/2010,Accommodation Rentals (Programme),Finance & Commercial Group - Information and Workplace Strategies,BROADLAND UNIT TRUST (KBC),1000077,15465.9375
"Department for Business, Innovation and Skills","Department for Business, Innovation and Skills",30/06/2010,Service Charges (Programme),Finance & Commercial Group - Information and Workplace Strategies,BROADLAND UNIT TRUST (KBC),1000081,3868.74
"Department for Business, Innovation and Skills","Department for Business, Innovation and Skills",23/06/2010,Accommodation Rentals (Programme),Finance & Commercial Group - Information and Workplace Strategies,CANBURY INVESTMENTS LTD,999475,46706.25
"Department for Business, Innovation and Skills","Department for Business, Innovation and Skills",23/06/2010,Service Charges (Programme),Finance & Commercial Group - Information and Workplace Strategies,CANBURY INVESTMENTS LTD,999475,60120
"Department for Business, Innovation and Skills","Department for Business, Innovation and Skills",22/06/2010,Accommodation Rentals (Programme),Finance & Commercial Group - Information and Workplace Strategies,CB RICHARD ELLIS,999324,27612.5
"Department for Business, Innovation and Skills","Department for Business, Innovation and Skills",22/06/2010,Accommodation Rentals (Programme),Finance & Commercial Group - Information and Workplace Strategies,CB RICHARD ELLIS,999323,28875.63
"Department for Business, Innovation and Skills","Department for Business, Innovation and Skills",22/06/2010,Service Charges (Programme),Finance & Commercial Group - Information and Workplace Strategies,CB RICHARD ELLIS,999324,17370.32
"Department for Business, Innovation and Skills","Department for Business, Innovation and Skills",22/06/2010,Service Charges (Programme),Finance & Commercial Group - Information and Workplace Strategies,CB RICHARD ELLIS,999323,18158.74
"Department for Business, Innovation and Skills","Department for Business, Innovation and Skills",09/06/2010,Buildings Insurance (Programme),Finance & Commercial Group - Information and Workplace Strategies,CB RICHARD ELLIS,998033,1174.79
"Department for Business, Innovation and Skills","Department for Business, Innovation and Skills",09/06/2010,Buildings Insurance (Programme),Finance & Commercial Group - Information and Workplace Strategies,CB RICHARD ELLIS,998034,1830.31
"Department for Business, Innovation and Skills","Department for Business, Innovation and Skills",16/06/2010,Gas (Programme),Finance & Commercial Group - Information and Workplace Strategies,CONTRACT NATURAL GAS LTD,998689,-1874.501
"Department for Business, Innovation and Skills","Department for Business, Innovation and Skills",16/06/2010,Gas (Programme),Finance & Commercial Group - Information and Workplace Strategies,CONTRACT NATURAL GAS LTD,998689,-678.741
"Department for Business, Innovation and Skills","Department for Business, Innovation and Skills",16/06/2010,Gas (Programme),Finance & Commercial Group - Information and Workplace Strategies,CONTRACT NATURAL GAS LTD,998689,-678.741
"Department for Business, Innovation and Skills","Department for Business, Innovation and Skills",15/06/2010,Gas (Programme),Finance & Commercial Group - Information and Workplace Strategies,CONTRACT NATURAL GAS LTD,998449,-198.2295
"Department for Business, Innovation and Skills","Department for Business, Innovation and Skills",16/06/2010,Gas (Programme),Finance & Commercial Group - Information and Workplace Strategies,CONTRACT NATURAL GAS LTD,998689,678.741
"Department for Business, Innovation and Skills","Department for Business, Innovation and Skills",16/06/2010,Gas (Programme),Finance & Commercial Group - Information and Workplace Strategies,CONTRACT NATURAL GAS LTD,998689,759.5435
"Department for Business, Innovation and Skills","Department for Business, Innovation and Skills",16/06/2010,Gas (Programme),Finance & Commercial Group - Information and Workplace Strategies,CONTRACT NATURAL GAS LTD,998689,1114.9575
"Department for Business, Innovation and Skills","Department for Business, Innovation and Skills",16/06/2010,Gas (Programme),Finance & Commercial Group - Information and Workplace Strategies,CONTRACT NATURAL GAS LTD,998689,1874.501
"Department for Business, Innovation and Skills","Department for Business, Innovation and Skills",28/06/2010,Accommodation Rentals (Programme),Finance & Commercial Group - Information and Workplace Strategies,COVENTRY & WARWICKSHIRE CHAMBER OF COMMERCE,999698,11953.68625
"Department for Business, Innovation and Skills","Department for Business, Innovation and Skills",30/06/2010,Other Accommodation Charges (Programme),Finance & Commercial Group - Information and Workplace Strategies,CRYSTAL SERVICES PLC,1000025,5973.15
"Department for Business, Innovation and Skills","Department for Business, Innovation and Skills",30/06/2010,Other Accommodation Charges (Programme),Finance & Commercial Group - Information and Workplace Strategies,CRYSTAL SERVICES PLC,1000021,5973.15
"Department for Business, Innovation and Skills","Department for Business, Innovation and Skills",02/06/2010,Electricity (Programme),Finance & Commercial Group - Information and Workplace Strategies,DLA PIPER UK LLP,997309,1823.083
"Department for Business, Innovation and Skills","Department for Business, Innovation and Skills",10/06/2010,Accommodation Rentals (Programme),Finance & Commercial Group - Information and Workplace Strategies,DVS PROPERTY LTD,998173,58382.8125
"Department for Business, Innovation and Skills","Department for Business, Innovation and Skills",24/06/2010,Accommodation Rentals (Programme),Finance & Commercial Group - Information and Workplace Strategies,DW & PI ECCLESTON T/A WALTON MANAGEMENT,999521,53494.8125
"Department for Business, Innovation and Skills","Department for Business, Innovation and Skills",24/06/2010,Service Charges (Programme),Finance & Commercial Group - Information and Workplace Strategies,DW & PI ECCLESTON T/A WALTON MANAGEMENT,999521,10500
"Department for Business, Innovation and Skills","Department for Business, Innovation and Skills",04/06/2010,Accommodation Rentals (Programme),Finance & Commercial Group - Information and Workplace Strategies,EDDISONS COMMERCIAL (PROPERTY MANAGEMENT) LTD T/A EDDISONS,997235,45116.95
"Department for Business, Innovation and Skills","Department for Business, Innovation and Skills",22/06/2010,Other Accommodation Charges (Programme),Finance & Commercial Group - Information and Workplace Strategies,G4S SECURE SOLUTIONS (UK) LTD,999298,625.8
"Department for Business, Innovation and Skills","Department for Business, Innovation and Skills",22/06/2010,Rates (Programme),Finance & Commercial Group - Information and Workplace Strategies,GLOUCESTER CITY COUNCIL,999295,35885.57
"Department for Business, Innovation and Skills","Department for Business, Innovation and Skills",22/06/2010,Accommodation Rentals (Programme),Finance & Commercial Group - Information and Workplace Strategies,INTERNATIONAL AIR TRANSPORT ASSOCIATION (IATA),999294,98962.683
"Department for Business, Innovation and Skills","Department for Business, Innovation and Skills",09/06/2010,Accommodation Rentals (Programme),Finance & Commercial Group - Information and Workplace Strategies,JONES LANG LASALLE LTD,997933,78284.375
"Department for Business, Innovation and Skills","Department for Business, Innovation and Skills",09/06/2010,Service Charges (Programme),Finance & Commercial Group - Information and Workplace Strategies,KNIGHT FRANK LLP,997928,1861.59
"Department for Business, Innovation and Skills","Department for Business, Innovation and Skills",08/06/2010,Accommodation Rentals (Programme),Finance & Commercial Group - Information and Workplace Strategies,LONGFIELD VENTURES LTD,997908,78020
"Department for Business, Innovation and Skills","Department for Business, Innovation and Skills",08/06/2010,Accommodation Rentals (Programme),Finance & Commercial Group - Information and Workplace Strategies,MATRIX SOLUTIONS UK LTD,997901,14255.1
"Department for Business, Innovation and Skills","Department for Business, Innovation and Skills",08/06/2010,Service Charges (Programme),Finance & Commercial Group - Information and Workplace Strategies,MATRIX SOLUTIONS UK LTD,997901,3678.925
"Department for Business, Innovation and Skills","Department for Business, Innovation and Skills",08/06/2010,Electricity (Programme),Finance & Commercial Group - Information and Workplace Strategies,MATRIX SOLUTIONS UK LTD,997901,618.755
"Department for Business, Innovation and Skills","Department for Business, Innovation and Skills",21/06/2010,Accommodation Rentals (Programme),Finance & Commercial Group - Information and Workplace Strategies,NB REAL ESTATE LTD,998901,3398.38
"Department for Business, Innovation and Skills","Department for Business, Innovation and Skills",21/06/2010,Accommodation Rentals (Programme),Finance & Commercial Group - Information and Workplace Strategies,NB REAL ESTATE LTD,998903,43732.33
"Department for Business, Innovation and Skills","Department for Business, Innovation and Skills",21/06/2010,Service Charges (Programme),Finance & Commercial Group - Information and Workplace Strategies,NB REAL ESTATE LTD,998903,21000.48
"Department for Business, Innovation and Skills","Department for Business, Innovation and Skills",21/06/2010,Buildings Insurance (Programme),Finance & Commercial Group - Information and Workplace Strategies,NB REAL ESTATE LTD,998899,6719.7
"Department for Business, Innovation and Skills","Department for Business, Innovation and Skills",29/06/2010,Accommodation Rentals (Programme),Finance & Commercial Group - Information and Workplace Strategies,NOEL O'CALLAGHAN GBP,999733,-72067.5
"Department for Business, Innovation and Skills","Department for Business, Innovation and Skills",29/06/2010,Accommodation Rentals (Programme),Finance & Commercial Group - Information and Workplace Strategies,NOEL O'CALLAGHAN GBP,999733,72067.5
"Department for Business, Innovation and Skills","Department for Business, Innovation and Skills",29/06/2010,Accommodation Rentals (Programme),Finance & Commercial Group - Information and Workplace Strategies,NOEL O'CALLAGHAN GBP,999733,84679.3125
"Department for Business, Innovation and Skills","Department for Business, Innovation and Skills",08/06/2010,Rates (Programme),Finance & Commercial Group - Information and Workplace Strategies,NORTHAMPTON BOROUGH COUNCIL,997710,18722.58
"Department for Business, Innovation and Skills","Department for Business, Innovation and Skills",08/06/2010,Rates (Programme),Finance & Commercial Group - Information and Workplace Strategies,NORTHAMPTON BOROUGH COUNCIL,997712,24810.29
"Department for Business, Innovation and Skills","Department for Business, Innovation and Skills",18/06/2010,Accommodation Rentals (Programme),Finance & Commercial Group - Information and Workplace Strategies,NRA LTD,998851,-146875
"Department for Business, Innovation and Skills","Department for Business, Innovation and Skills",18/06/2010,Accommodation Rentals (Programme),Finance & Commercial Group - Information and Workplace Strategies,NRA LTD,998851,36718.75
"Department for Business, Innovation and Skills","Department for Business, Innovation and Skills",18/06/2010,Accommodation Rentals (Programme),Finance & Commercial Group - Information and Workplace Strategies,NRA LTD,998851,146875
"Department for Business, Innovation and Skills","Department for Business, Innovation and Skills",10/06/2010,Accommodation Rentals (Programme),Finance & Commercial Group - Information and Workplace Strategies,P HARRISON TRUST & J HARRISON TRUST,998054,35912.5
"Department for Business, Innovation and Skills","Department for Business, Innovation and Skills",11/06/2010,Service Charges (Programme),Finance & Commercial Group - Information and Workplace Strategies,PAUL CHASTON COMMERCIAL PROPERTY LTD,998279,669.5
"Department for Business, Innovation and Skills","Department for Business, Innovation and Skills",11/06/2010,Service Charges (Programme),Finance & Commercial Group - Information and Workplace Strategies,PAUL CHASTON COMMERCIAL PROPERTY LTD,998278,669.5
"Department for Business, Innovation and Skills","Department for Business, Innovation and Skills",22/06/2010,Accommodation Rentals (Programme),Finance & Commercial Group - Information and Workplace Strategies,PEILL & COMPANY LTD,999297,19093.75
"Department for Business, Innovation and Skills","Department for Business, Innovation and Skills",22/06/2010,Service Charges (Programme),Finance & Commercial Group - Information and Workplace Strategies,PEILL & COMPANY LTD,999297,2000
"Department for Business, Innovation and Skills","Department for Business, Innovation and Skills",09/06/2010,Accommodation Rentals (Programme),Finance & Commercial Group - Information and Workplace Strategies,PEMBERSTONE COMMERCIAL NORTH EAST LTD,997934,21229.3125
"Department for Business, Innovation and Skills","Department for Business, Innovation and Skills",09/06/2010,Service Charges (Programme),Finance & Commercial Group - Information and Workplace Strategies,PEMBERSTONE COMMERCIAL NORTH EAST LTD,997934,4981.97
"Department for Business, Innovation and Skills","Department for Business, Innovation and Skills",22/06/2010,Accommodation Rentals (Programme),Finance & Commercial Group - Information and Workplace Strategies,PRUDENTIAL PROPERTY INVESTMENT MANAGERS LTD,999316,276125
"Department for Business, Innovation and Skills","Department for Business, Innovation and Skills",22/06/2010,Accommodation Rentals (Programme),Finance & Commercial Group - Information and Workplace Strategies,SAVILLS COMMERCIAL LTD,999308,79018.75
"Department for Business, Innovation and Skills","Department for Business, Innovation and Skills",09/06/2010,Accommodation Rentals (Programme),Finance & Commercial Group - Information and Workplace Strategies,SOUTH WEST BUILDERS FEDERATION,997991,6242.1875
"Department for Business, Innovation and Skills","Department for Business, Innovation and Skills",21/06/2010,Electricity (Programme),Finance & Commercial Group - Information and Workplace Strategies,SSE ENERGY SUPPLY LTD T/A SOUTHERN ELECTRIC,998801,1314.4255
"Department for Business, Innovation and Skills","Department for Business, Innovation and Skills",21/06/2010,Electricity (Programme),Finance & Commercial Group - Information and Workplace Strategies,SSE ENERGY SUPPLY LTD T/A SOUTHERN ELECTRIC,998800,1507.8305
"Department for Business, Innovation and Skills","Department for Business, Innovation and Skills",08/06/2010,Rates (Programme),Finance & Commercial Group - Information and Workplace Strategies,ST ALBANS DISTRICT COUNCIL,997711,11074.5
"Department for Business, Innovation and Skills","Department for Business, Innovation and Skills",08/06/2010,Accommodation Rentals (Programme),Finance & Commercial Group - Information and Workplace Strategies,TEMPLEDOVE LTD,997913,15319.0625
"Department for Business, Innovation and Skills","Department for Business, Innovation and Skills",22/06/2010,Accommodation Rentals (Programme),Finance & Commercial Group - Information and Workplace Strategies,THE ETHNIC MINORITY FOUNDATION,999293,58028.75
"Department for Business, Innovation and Skills","Department for Business, Innovation and Skills",22/06/2010,Service Charges (Programme),Finance & Commercial Group - Information and Workplace Strategies,THE ETHNIC MINORITY FOUNDATION,999293,40000
"Department for Business, Innovation and Skills","Department for Business, Innovation and Skills",22/06/2010,Buildings Insurance (Programme),Finance & Commercial Group - Information and Workplace Strategies,THE ETHNIC MINORITY FOUNDATION,999293,1924.46
"Department for Business, Innovation and Skills","Department for Business, Innovation and Skills",22/06/2010,Accommodation Rentals (Programme),Finance & Commercial Group - Information and Workplace Strategies,TRUSTEES OF THE GANNYMEAD PENSION SCHEME,999296,20369.8
"Department for Business, Innovation and Skills","Department for Business, Innovation and Skills",18/06/2010,Other NDPB Resource Spend (Near Cash),Universities and Skills Group - Further Education & Skills Investment,DEPARTMENT FOR EDUCATION,998620,4921181
"Department for Business, Innovation and Skills","Department for Business, Innovation and Skills",22/06/2010,Other Training Costs (Programme),Fair Markets Group Summary - ECO,DE VERE GRAND HARBOUR HOTEL,999386,676.8
"Department for Business, Innovation and Skills","Department for Business, Innovation and Skills",22/06/2010,Other Training Costs (Programme),Fair Markets Group Summary - ECO,DE VERE GRAND HARBOUR HOTEL,999383,1919.95
"Department for Business, Innovation and Skills","Department for Business, Innovation and Skills",21/06/2010,Catering Services (Programme),Fair Markets Group Summary - ECO,SPOILT FOR CHOICE LTD,999194,-315.2
"Department for Business, Innovation and Skills","Department for Business, Innovation and Skills",21/06/2010,Catering Services (Programme),Fair Markets Group Summary - ECO,SPOILT FOR CHOICE LTD,999207,-119
"Department for Business, Innovation and Skills","Department for Business, Innovation and Skills",15/06/2010,Grant in Aid - Current -Other,Universities and Skills Group - Higher Education,OFFICE FOR FAIR ACCESS (OFFA),998144,35000
"Department for Business, Innovation and Skills","Department for Business, Innovation and Skills",30/06/2010,Additions - OFCOM Loans,Business Group - Information Economy,OFCOM,999897,917053
"Department for Business, Innovation and Skills","Department for Business, Innovation and Skills",08/06/2010,Economic Consultancy and Research,"Innovation, Enterprise & Better Regulation Executive - Innovation",DESIGN COUNCIL,997742,5000
"Department for Business, Innovation and Skills","Department for Business, Innovation and Skills",14/06/2010,IT Systems Development,Finance & Commercial Group - Finance Group,METHODS CONSULTING LTD,998350,13853.25
"Department for Business, Innovation and Skills","Department for Business, Innovation and Skills",15/06/2010,Counsels Expert Legal Opinion on Points of Law,"Legal, People & Communications Group - Legal",BEACHCROFT LLP,998019,-5985
"Department for Business, Innovation and Skills","Department for Business, Innovation and Skills",03/06/2010,Counsels Expert Legal Opinion on Points of Law,"Legal, People & Communications Group - Legal",BEACHCROFT LLP,997448,-5240.2
"Department for Business, Innovation and Skills","Department for Business, Innovation and Skills",15/06/2010,Counsels Expert Legal Opinion on Points of Law,"Legal, People & Communications Group - Legal",BEACHCROFT LLP,998029,-5103
"Department for Business, Innovation and Skills","Department for Business, Innovation and Skills",03/06/2010,Counsels Expert Legal Opinion on Points of Law,"Legal, People & Communications Group - Legal",BEACHCROFT LLP,997443,-2903.9
"Department for Business, Innovation and Skills","Department for Business, Innovation and Skills",15/06/2010,Counsels Expert Legal Opinion on Points of Law,"Legal, People & Communications Group - Legal",BEACHCROFT LLP,998024,-2835
"Department for Business, Innovation and Skills","Department for Business, Innovation and Skills",03/06/2010,Counsels Expert Legal Opinion on Points of Law,"Legal, People & Communications Group - Legal",BEACHCROFT LLP,997451,-1020
"Department for Business, Innovation and Skills","Department for Business, Innovation and Skills",03/06/2010,Counsels Expert Legal Opinion on Points of Law,"Legal, People & Communications Group - Legal",BEACHCROFT LLP,997455,-532.5
"Department for Business, Innovation and Skills","Department for Business, Innovation and Skills",15/06/2010,Counsels Expert Legal Opinion on Points of Law,"Legal, People & Communications Group - Legal",BEACHCROFT LLP,998025,-176
"Department for Business, Innovation and Skills","Department for Business, Innovation and Skills",15/06/2010,Counsels Expert Legal Opinion on Points of Law,"Legal, People & Communications Group - Legal",BEACHCROFT LLP,998025,-176
"Department for Business, Innovation and Skills","Department for Business, Innovation and Skills",03/06/2010,Counsels Expert Legal Opinion on Points of Law,"Legal, People & Communications Group - Legal",BEACHCROFT LLP,997451,1020
"Department for Business, Innovation and Skills","Department for Business, Innovation and Skills",15/06/2010,Counsels Expert Legal Opinion on Points of Law,"Legal, People & Communications Group - Legal",BEACHCROFT LLP,998024,2835
"Department for Business, Innovation and Skills","Department for Business, Innovation and Skills",03/06/2010,Counsels Expert Legal Opinion on Points of Law,"Legal, People & Communications Group - Legal",BEACHCROFT LLP,997443,2903.9
"Department for Business, Innovation and Skills","Department for Business, Innovation and Skills",15/06/2010,Counsels Expert Legal Opinion on Points of Law,"Legal, People & Communications Group - Legal",BEACHCROFT LLP,998029,5103
"Department for Business, Innovation and Skills","Department for Business, Innovation and Skills",03/06/2010,Counsels Expert Legal Opinion on Points of Law,"Legal, People & Communications Group - Legal",BEACHCROFT LLP,997448,5240.2
"Department for Business, Innovation and Skills","Department for Business, Innovation and Skills",15/06/2010,Counsels Expert Legal Opinion on Points of Law,"Legal, People & Communications Group - Legal",BEACHCROFT LLP,998019,5985
"Department for Business, Innovation and Skills","Department for Business, Innovation and Skills",03/06/2010,Counsels Expert Legal Opinion on Points of Law,"Legal, People & Communications Group - Legal",SIMPSON & MARWICK SOLICITORS,997441,-4507.79
"Department for Business, Innovation and Skills","Department for Business, Innovation and Skills",03/06/2010,Counsels Expert Legal Opinion on Points of Law,"Legal, People & Communications Group - Legal",SIMPSON & MARWICK SOLICITORS,997456,-2362.8
"Department for Business, Innovation and Skills","Department for Business, Innovation and Skills",03/06/2010,Counsels Expert Legal Opinion on Points of Law,"Legal, People & Communications Group - Legal",SIMPSON & MARWICK SOLICITORS,997442,-1152.17
"Department for Business, Innovation and Skills","Department for Business, Innovation and Skills",03/06/2010,Counsels Expert Legal Opinion on Points of Law,"Legal, People & Communications Group - Legal",SIMPSON & MARWICK SOLICITORS,997441,1001.73
"Department for Business, Innovation and Skills","Department for Business, Innovation and Skills",03/06/2010,Counsels Expert Legal Opinion on Points of Law,"Legal, People & Communications Group - Legal",SIMPSON & MARWICK SOLICITORS,997442,1152.17
"Department for Business, Innovation and Skills","Department for Business, Innovation and Skills",03/06/2010,Counsels Expert Legal Opinion on Points of Law,"Legal, People & Communications Group - Legal",SIMPSON & MARWICK SOLICITORS,997456,2362.8
"Department for Business, Innovation and Skills","Department for Business, Innovation and Skills",03/06/2010,Counsels Expert Legal Opinion on Points of Law,"Legal, People & Communications Group - Legal",SIMPSON & MARWICK SOLICITORS,997441,3506.06
"Department for Business, Innovation and Skills","Department for Business, Innovation and Skills",29/06/2010,Conference and Exhibition Services (Programme),"Legal, People & Communications Group - Communications Directorate",AZTEC EVENT SERVICES LTD,999914,1858.615
"Department for Business, Innovation and Skills","Department for Business, Innovation and Skills",11/06/2010,Outsourced Programme Management Services,"Legal, People & Communications Group - Communications Directorate",BADENOCH AND CLARK LTD,998267,-714.587
"Department for Business, Innovation and Skills","Department for Business, Innovation and Skills",11/06/2010,Outsourced Programme Management Services,"Legal, People & Communications Group - Communications Directorate",BADENOCH AND CLARK LTD,998267,714.587
"Department for Business, Innovation and Skills","Department for Business, Innovation and Skills",11/06/2010,Outsourced Programme Management Services,"Legal, People & Communications Group - Communications Directorate",BADENOCH AND CLARK LTD,998267,730.1215
"Department for Business, Innovation and Skills","Department for Business, Innovation and Skills",28/06/2010,Outsourced Programme Management Services,"Legal, People & Communications Group - Communications Directorate",BADENOCH AND CLARK LTD,999695,730.1215
"Department for Business, Innovation and Skills","Department for Business, Innovation and Skills",28/06/2010,Outsourced Programme Management Services,"Legal, People & Communications Group - Communications Directorate",BADENOCH AND CLARK LTD,999702,912.65775
"Department for Business, Innovation and Skills","Department for Business, Innovation and Skills",02/06/2010,Outsourced Programme Management Services,"Legal, People & Communications Group - Communications Directorate",BADENOCH AND CLARK LTD,997261,1095.18225
"Department for Business, Innovation and Skills","Department for Business, Innovation and Skills",11/06/2010,Outsourced Programme Management Services,"Legal, People & Communications Group - Communications Directorate",BADENOCH AND CLARK LTD,998266,1095.18225
"Department for Business, Innovation and Skills","Department for Business, Innovation and Skills",11/06/2010,Purchase of  Advertising and Publicity (Programme),"Legal, People & Communications Group - Communications Directorate",BLACKBIRD PRODUCTIONS,998164,5604
"Department for Business, Innovation and Skills","Department for Business, Innovation and Skills",03/06/2010,Purchase of  Advertising and Publicity (Programme),"Legal, People & Communications Group - Communications Directorate",COI COMMUNICATIONS,997284,775
"Department for Business, Innovation and Skills","Department for Business, Innovation and Skills",30/06/2010,Media and Design Services,"Legal, People & Communications Group - Communications Directorate",COI COMMUNICATIONS,984486,2690.48
"Department for Business, Innovation and Skills","Department for Business, Innovation and Skills",24/06/2010,Media and Design Services,"Legal, People & Communications Group - Communications Directorate",CTN,999623,1500
"Department for Business, Innovation and Skills","Department for Business, Innovation and Skills",09/06/2010,IT Systems Development,"Legal, People & Communications Group - Communications Directorate",LOGICA UK LTD,997489,2035
"Department for Business, Innovation and Skills","Department for Business, Innovation and Skills",09/06/2010,IT Systems Development,"Legal, People & Communications Group - Communications Directorate",LOGICA UK LTD,997489,40197.925
"Department for Business, Innovation and Skills","Department for Business, Innovation and Skills",24/06/2010,Purchase of  Advertising and Publicity (Programme),"Legal, People & Communications Group - Communications Directorate",NOEL MURPHY PHOTOGRAPHY,999627,800
"Department for Business, Innovation and Skills","Department for Business, Innovation and Skills",23/06/2010,Media and Design Services,"Legal, People & Communications Group - Communications Directorate",NOMENSA LTD,999452,650
"Department for Business, Innovation and Skills","Department for Business, Innovation and Skills",23/06/2010,Media and Design Services,"Legal, People & Communications Group - Communications Directorate",SITEIMPROVE LTD,999420,2688
"Department for Business, Innovation and Skills","Department for Business, Innovation and Skills",28/06/2010,Media and Design Services,"Legal, People & Communications Group - Communications Directorate",STT CREATIVE LTD T/A SHOOT THAT TIGER,999779,745.6
"Department for Business, Innovation and Skills","Department for Business, Innovation and Skills",28/06/2010,Media and Design Services,"Legal, People & Communications Group - Communications Directorate",STT CREATIVE LTD T/A SHOOT THAT TIGER,999780,750
"Department for Business, Innovation and Skills","Department for Business, Innovation and Skills",10/06/2010,Other Staff Costs (Programme),"Legal, People & Communications Group - Communications Directorate",XCHANGETEAM GROUP LTD,998128,705
"Department for Business, Innovation and Skills","Department for Business, Innovation and Skills",28/06/2010,Media and Design Services,"Innovation, Enterprise & Better Regulation Executive - Enterprise Directorate",ATRIUM (UK) LTD,999767,14450
"Department for Business, Innovation and Skills","Department for Business, Innovation and Skills",18/06/2010,Media and Design Services,"Innovation, Enterprise & Better Regulation Executive - Enterprise Directorate",STAFFORDSHIRE CRYSTAL LTD,998868,9502.8125
"Department for Business, Innovation and Skills","Department for Business, Innovation and Skills",17/06/2010,Cash Expenditure during the Year - Other Programme Provisions,Finance & Commercial Group - Finance Group,ITZHAK IGNACY FINSTER,998361,5109
"Department for Business, Innovation and Skills","Department for Business, Innovation and Skills",02/06/2010,Cash Expenditure during the Year - Other Programme Provisions,Finance & Commercial Group - Finance Group,SIR CHRISTOPHER STAUGHTON,997333,7094.38
"Department for Business, Innovation and Skills","Department for Business, Innovation and Skills",01/06/2010,Research & Development Expenditure (Programme),Strategic Policy Analysis - Strategic Policy Analysis,CENTRE FOR ECONOMIC POLICY RESEARCH,996803,9970.5
"Department for Business, Innovation and Skills","Department for Business, Innovation and Skills",08/06/2010,Sponsorship Support,Strategic Policy Analysis - Strategic Policy Analysis,CONSTRUCTING EXCELLENCE LTD,997784,22500
"Department for Business, Innovation and Skills","Department for Business, Innovation and Skills",30/06/2010,Sponsorship Support,Strategic Policy Analysis - Strategic Policy Analysis,CONSTRUCTING EXCELLENCE LTD,999990,22500
"Department for Business, Innovation and Skills","Department for Business, Innovation and Skills",08/06/2010,Sponsorship Support,Strategic Policy Analysis - Strategic Policy Analysis,ROYAL INSTITUTE OF CHARTERED SURVEYORS,997895,33839
"Department for Business, Innovation and Skills","Department for Business, Innovation and Skills",10/06/2010,Purchase of Completed Research,Strategy Group - Strategy Directorate,COI COMMUNICATIONS,998117,19550
"Department for Business, Innovation and Skills","Department for Business, Innovation and Skills",24/06/2010,On-Line Databases (Programme),"Legal, People & Communications Group - Organisation Design",SOFTWARE FOR DATA ANALYSIS,999498,9840
"Department for Business, Innovation and Skills","Department for Business, Innovation and Skills",22/06/2010,Payments to Treasury Solicitors and Treasury Counsel,"Legal, People & Communications Group - Legal",THE TREASURY SOLICITORS DEPARTMENT,999399,-69430.38
"Department for Business, Innovation and Skills","Department for Business, Innovation and Skills",22/06/2010,Payments to Treasury Solicitors and Treasury Counsel,"Legal, People & Communications Group - Legal",THE TREASURY SOLICITORS DEPARTMENT,999399,5796.95
"Department for Business, Innovation and Skills","Department for Business, Innovation and Skills",22/06/2010,Payments to Treasury Solicitors and Treasury Counsel,"Legal, People & Communications Group - Legal",THE TREASURY SOLICITORS DEPARTMENT,999399,63231.43
"Department for Business, Innovation and Skills","Department for Business, Innovation and Skills",22/06/2010,Payments to Treasury Solicitors and Treasury Counsel,"Legal, People & Communications Group - Legal",THE TREASURY SOLICITORS DEPARTMENT,999399,69430.38
"Department for Business, Innovation and Skills","Department for Business, Innovation and Skills",04/06/2010,Other Training Costs (Programme),"Legal, People & Communications Group - Priority Projects Drectorate",AMTEC Consulting plc,997020,2790.625
"Department for Business, Innovation and Skills","Department for Business, Innovation and Skills",03/06/2010,Other Training Costs (Programme),"Legal, People & Communications Group - Priority Projects Drectorate",CHRIS STEBBING CONSULTING LTD,997026,2707.64
"Department for Business, Innovation and Skills","Department for Business, Innovation and Skills",03/06/2010,Other Training Costs (Programme),"Legal, People & Communications Group - Priority Projects Drectorate",CONSENSIA CONSULTING LTD,997021,3960.53725
"Department for Business, Innovation and Skills","Department for Business, Innovation and Skills",04/06/2010,Other Training Costs (Programme),"Legal, People & Communications Group - Priority Projects Drectorate",QUO IMUS LTD T/A QI CONSULTING,997017,4203.5625
"Department for Business, Innovation and Skills","Department for Business, Innovation and Skills",23/06/2010,Other Training Costs (Programme),"Legal, People & Communications Group - Priority Projects Drectorate",XAFINITY CONSULTING LTD T/A XAFINITY SKILL BASE,999437,2220
"Department for Business, Innovation and Skills","Department for Business, Innovation and Skills",17/06/2010,Additions - Bridges Fund Investment,"Innovation, Enterprise & Better Regulation Executive - Enterprise Directorate",BERR EQUITY INVESTMENT PROGRAMMES (CAPITAL),998803,-87871.44
"Department for Business, Innovation and Skills","Department for Business, Innovation and Skills",17/06/2010,Additions - Bridges Fund Investment,"Innovation, Enterprise & Better Regulation Executive - Enterprise Directorate",BERR EQUITY INVESTMENT PROGRAMMES (CAPITAL),998803,83871.44
"Department for Business, Innovation and Skills","Department for Business, Innovation and Skills",17/06/2010,Additions - Bridges Fund Investment,"Innovation, Enterprise & Better Regulation Executive - Enterprise Directorate",BERR EQUITY INVESTMENT PROGRAMMES (CAPITAL),998803,87871.44
"Department for Business, Innovation and Skills","Department for Business, Innovation and Skills",25/06/2010,Interest Receivable - Other,Shareholder Executive - Shareholder Executive,POST OFFICE LTD C/O ROYAL MAIL,999677,-4157.88
"Department for Business, Innovation and Skills","Department for Business, Innovation and Skills",08/06/2010,Interest Receivable - Other,Shareholder Executive - Shareholder Executive,POST OFFICE LTD C/O ROYAL MAIL,997789,-3622.09
"Department for Business, Innovation and Skills","Department for Business, Innovation and Skills",30/06/2010,Interest Receivable - Other,Shareholder Executive - Shareholder Executive,POST OFFICE LTD C/O ROYAL MAIL,1000047,-3282.53
"Department for Business, Innovation and Skills","Department for Business, Innovation and Skills",02/06/2010,Interest Receivable - Other,Shareholder Executive - Shareholder Executive,POST OFFICE LTD C/O ROYAL MAIL,997276,-3183.05
"Department for Business, Innovation and Skills","Department for Business, Innovation and Skills",04/06/2010,Interest Receivable - Other,Shareholder Executive - Shareholder Executive,POST OFFICE LTD C/O ROYAL MAIL,997576,-2853.77
"Department for Business, Innovation and Skills","Department for Business, Innovation and Skills",22/06/2010,Interest Receivable - Other,Shareholder Executive - Shareholder Executive,POST OFFICE LTD C/O ROYAL MAIL,999333,-2516.61
"Department for Business, Innovation and Skills","Department for Business, Innovation and Skills",29/06/2010,Interest Receivable - Other,Shareholder Executive - Shareholder Executive,POST OFFICE LTD C/O ROYAL MAIL,999929,-2297.77
"Department for Business, Innovation and Skills","Department for Business, Innovation and Skills",18/06/2010,Interest Receivable - Other,Shareholder Executive - Shareholder Executive,POST OFFICE LTD C/O ROYAL MAIL,999004,-1860.1
"Department for Business, Innovation and Skills","Department for Business, Innovation and Skills",17/06/2010,Interest Receivable - Other,Shareholder Executive - Shareholder Executive,POST OFFICE LTD C/O ROYAL MAIL,998798,-1750.68
"Department for Business, Innovation and Skills","Department for Business, Innovation and Skills",11/06/2010,Interest Receivable - Other,Shareholder Executive - Shareholder Executive,POST OFFICE LTD C/O ROYAL MAIL,998258,-1646.4
"Department for Business, Innovation and Skills","Department for Business, Innovation and Skills",15/06/2010,Interest Receivable - Other,Shareholder Executive - Shareholder Executive,POST OFFICE LTD C/O ROYAL MAIL,998483,-1094.18
"Department for Business, Innovation and Skills","Department for Business, Innovation and Skills",02/06/2010,Additions Post Office Ltd - Loans from Vote,Shareholder Executive - Shareholder Executive,POST OFFICE LTD C/O ROYAL MAIL,997276,5000000
"Department for Business, Innovation and Skills","Department for Business, Innovation and Skills",08/06/2010,Additions Post Office Ltd - Loans from Vote,Shareholder Executive - Shareholder Executive,POST OFFICE LTD C/O ROYAL MAIL,997789,5000000
"Department for Business, Innovation and Skills","Department for Business, Innovation and Skills",17/06/2010,Additions Post Office Ltd - Loans from Vote,Shareholder Executive - Shareholder Executive,POST OFFICE LTD C/O ROYAL MAIL,998798,5000000
"Department for Business, Innovation and Skills","Department for Business, Innovation and Skills",29/06/2010,Additions Post Office Ltd - Loans from Vote,Shareholder Executive - Shareholder Executive,POST OFFICE LTD C/O ROYAL MAIL,999929,45000000
"Department for Business, Innovation and Skills","Department for Business, Innovation and Skills",11/06/2010,Additions Post Office Ltd - Loans from Vote,Shareholder Executive - Shareholder Executive,POST OFFICE LTD C/O ROYAL MAIL,998258,60000000
"Department for Business, Innovation and Skills","Department for Business, Innovation and Skills",15/06/2010,Additions Post Office Ltd - Loans from Vote,Shareholder Executive - Shareholder Executive,POST OFFICE LTD C/O ROYAL MAIL,998483,70000000
"Department for Business, Innovation and Skills","Department for Business, Innovation and Skills",25/06/2010,Additions Post Office Ltd - Loans from Vote,Shareholder Executive - Shareholder Executive,POST OFFICE LTD C/O ROYAL MAIL,999677,80000000
"Department for Business, Innovation and Skills","Department for Business, Innovation and Skills",18/06/2010,Additions Post Office Ltd - Loans from Vote,Shareholder Executive - Shareholder Executive,POST OFFICE LTD C/O ROYAL MAIL,999004,95000000
"Department for Business, Innovation and Skills","Department for Business, Innovation and Skills",30/06/2010,Additions Post Office Ltd - Loans from Vote,Shareholder Executive - Shareholder Executive,POST OFFICE LTD C/O ROYAL MAIL,1000047,100000000
"Department for Business, Innovation and Skills","Department for Business, Innovation and Skills",04/06/2010,Additions Post Office Ltd - Loans from Vote,Shareholder Executive - Shareholder Executive,POST OFFICE LTD C/O ROYAL MAIL,997576,155000000
"Department for Business, Innovation and Skills","Department for Business, Innovation and Skills",22/06/2010,Additions Post Office Ltd - Loans from Vote,Shareholder Executive - Shareholder Executive,POST OFFICE LTD C/O ROYAL MAIL,999333,165000000
"Department for Business, Innovation and Skills","Department for Business, Innovation and Skills",09/06/2010,Hospitality - UK,Business Group - Business Environment and Growth Directorate,ABBEY COMMUNITY SERVICES LTD,997595,-429
"Department for Business, Innovation and Skills","Department for Business, Innovation and Skills",18/06/2010,Taxis,"Legal, People & Communications Group - Communications Directorate",ADDISON LEE plc,998304,-66.2745
"Department for Business, Innovation and Skills","Department for Business, Innovation and Skills",04/06/2010,Hire of Agency Staff (Professional/Management),Ministerial and Parliamentary Support Team - Ministerial and Parliamentary Support Team,ADECCO UK LTD,996993,-900.5905
"Department for Business, Innovation and Skills","Department for Business, Innovation and Skills",08/06/2010,Hire of Agency Staff (Professional/Management),Business Group - Information Economy,ADECCO UK LTD,997664,658.01175
"Department for Business, Innovation and Skills","Department for Business, Innovation and Skills",03/06/2010,Hire of Agency Staff (Professional/Management),Business Group - Information Economy,ADECCO UK LTD,997183,808.52925
"Department for Business, Innovation and Skills","Department for Business, Innovation and Skills",28/06/2010,Hire of Agency Staff (Professional/Management),Business Group - Information Economy,ADECCO UK LTD,999713,847.56275
"Department for Business, Innovation and Skills","Department for Business, Innovation and Skills",22/06/2010,Hire of Agency Staff (Professional/Management),Business Group - Information Economy,ADECCO UK LTD,999070,869.8525
"Department for Business, Innovation and Skills","Department for Business, Innovation and Skills",04/06/2010,Hire of Agency Staff (Professional/Management),Ministerial and Parliamentary Support Team - Ministerial and Parliamentary Support Team,ADECCO UK LTD,996993,900.5905
"Department for Business, Innovation and Skills","Department for Business, Innovation and Skills",04/06/2010,Hire of Agency Staff (Professional/Management),Ministerial and Parliamentary Support Team - Ministerial and Parliamentary Support Team,ADECCO UK LTD,996993,900.5905
"Department for Business, Innovation and Skills","Department for Business, Innovation and Skills",11/06/2010,Hire of Agency Staff (Clerical/Secretariat/Other),"Legal, People & Communications Group - Communications Directorate",ADECCO UK LTD,998176,-607.475
"Department for Business, Innovation and Skills","Department for Business, Innovation and Skills",16/06/2010,Hire of Agency Staff (Clerical/Secretariat/Other),Finance & Commercial Group - Information and Workplace Strategies,ADECCO UK LTD,998576,-505.54
"Department for Business, Innovation and Skills","Department for Business, Innovation and Skills",11/06/2010,Hire of Agency Staff (Clerical/Secretariat/Other),"Legal, People & Communications Group - Communications Directorate",ADECCO UK LTD,998176,-504.075
"Department for Business, Innovation and Skills","Department for Business, Innovation and Skills",04/06/2010,Hire of Agency Staff (Clerical/Secretariat/Other),Fair Markets Group Summary - Europe Directorate,ADECCO UK LTD,997598,-474.789
"Department for Business, Innovation and Skills","Department for Business, Innovation and Skills",25/06/2010,Hire of Agency Staff (Clerical/Secretariat/Other),"Legal, People & Communications Group - Communications Directorate",ADECCO UK LTD,999691,-252.6015
"Department for Business, Innovation and Skills","Department for Business, Innovation and Skills",11/06/2010,Hire of Agency Staff (Clerical/Secretariat/Other),"Legal, People & Communications Group - Communications Directorate",ADECCO UK LTD,998176,-175.075
"Department for Business, Innovation and Skills","Department for Business, Innovation and Skills",11/06/2010,Hire of Agency Staff (Clerical/Secretariat/Other),"Legal, People & Communications Group - Communications Directorate",ADECCO UK LTD,998176,-71.675
"Department for Business, Innovation and Skills","Department for Business, Innovation and Skills",07/06/2010,Hire of Agency Staff (Clerical/Secretariat/Other),"Legal, People & Communications Group - Priority Projects Drectorate",ADECCO UK LTD,997597,500.738
"Department for Business, Innovation and Skills","Department for Business, Innovation and Skills",11/06/2010,Hire of Agency Staff (Clerical/Secretariat/Other),"Legal, People & Communications Group - Communications Directorate",ADECCO UK LTD,998176,504.075
"Department for Business, Innovation and Skills","Department for Business, Innovation and Skills",16/06/2010,Hire of Agency Staff (Clerical/Secretariat/Other),Finance & Commercial Group - Information and Workplace Strategies,ADECCO UK LTD,998576,505.54
"Department for Business, Innovation and Skills","Department for Business, Innovation and Skills",15/06/2010,Hire of Agency Staff (Clerical/Secretariat/Other),"Legal, People & Communications Group - Legal",ADECCO UK LTD,998316,506.78925
"Department for Business, Innovation and Skills","Department for Business, Innovation and Skills",22/06/2010,Hire of Agency Staff (Clerical/Secretariat/Other),Fair Markets Group Summary - Corporate Law and Governance,ADECCO UK LTD,999097,508.117
"Department for Business, Innovation and Skills","Department for Business, Innovation and Skills",18/06/2010,Hire of Agency Staff (Clerical/Secretariat/Other),"Legal, People & Communications Group - Communications Directorate",ADECCO UK LTD,998580,508.57525
"Department for Business, Innovation and Skills","Department for Business, Innovation and Skills",16/06/2010,Hire of Agency Staff (Clerical/Secretariat/Other),Fair Markets Group Summary - Europe Directorate,ADECCO UK LTD,998589,509.4565
"Department for Business, Innovation and Skills","Department for Business, Innovation and Skills",16/06/2010,Hire of Agency Staff (Clerical/Secretariat/Other),Finance & Commercial Group - Information and Workplace Strategies,ADECCO UK LTD,998576,516.53
"Department for Business, Innovation and Skills","Department for Business, Innovation and Skills",29/06/2010,Hire of Agency Staff (Clerical/Secretariat/Other),"Legal, People & Communications Group - Priority Projects Drectorate",ADECCO UK LTD,999699,517.71675
"Department for Business, Innovation and Skills","Department for Business, Innovation and Skills",04/06/2010,Hire of Agency Staff (Clerical/Secretariat/Other),Strategy Group - Strategy Directorate,ADECCO UK LTD,997177,530.33
"Department for Business, Innovation and Skills","Department for Business, Innovation and Skills",16/06/2010,Hire of Agency Staff (Clerical/Secretariat/Other),Business Group - Advanced Manufacturing Industries,ADECCO UK LTD,998582,543.91925
"Department for Business, Innovation and Skills","Department for Business, Innovation and Skills",16/06/2010,Hire of Agency Staff (Clerical/Secretariat/Other),Business Group - Advanced Manufacturing Industries,ADECCO UK LTD,998584,548.36075
"Department for Business, Innovation and Skills","Department for Business, Innovation and Skills",16/06/2010,Hire of Agency Staff (Clerical/Secretariat/Other),Strategic Policy Analysis - Strategic Policy Analysis,ADECCO UK LTD,998570,550.87525
"Department for Business, Innovation and Skills","Department for Business, Innovation and Skills",22/06/2010,Hire of Agency Staff (Clerical/Secretariat/Other),Business Group - Advanced Manufacturing Industries,ADECCO UK LTD,999136,559.31175
"Department for Business, Innovation and Skills","Department for Business, Innovation and Skills",04/06/2010,Hire of Agency Staff (Clerical/Secretariat/Other),Business Group - Advanced Manufacturing Industries,ADECCO UK LTD,997596,559.4175
"Department for Business, Innovation and Skills","Department for Business, Innovation and Skills",21/06/2010,Hire of Agency Staff (Clerical/Secretariat/Other),Finance & Commercial Group - Information and Workplace Strategies,ADECCO UK LTD,999086,567.77175
"Department for Business, Innovation and Skills","Department for Business, Innovation and Skills",16/06/2010,Hire of Agency Staff (Clerical/Secretariat/Other),Business Group - Advanced Manufacturing Industries,ADECCO UK LTD,998566,574.68075
"Department for Business, Innovation and Skills","Department for Business, Innovation and Skills",21/06/2010,Hire of Agency Staff (Clerical/Secretariat/Other),Finance & Commercial Group - Information and Workplace Strategies,ADECCO UK LTD,999088,575.5855
"Department for Business, Innovation and Skills","Department for Business, Innovation and Skills",18/06/2010,Hire of Agency Staff (Clerical/Secretariat/Other),Shareholder Executive - Shareholder Executive,ADECCO UK LTD,999099,576.91325
"Department for Business, Innovation and Skills","Department for Business, Innovation and Skills",02/06/2010,Hire of Agency Staff (Clerical/Secretariat/Other),Business Group - Advanced Manufacturing Industries,ADECCO UK LTD,997123,579.2515
"Department for Business, Innovation and Skills","Department for Business, Innovation and Skills",28/06/2010,Hire of Agency Staff (Clerical/Secretariat/Other),Fair Markets Group Summary - Corporate Law and Governance,ADECCO UK LTD,999723,594.06825
"Department for Business, Innovation and Skills","Department for Business, Innovation and Skills",16/06/2010,Hire of Agency Staff (Clerical/Secretariat/Other),"Legal, People & Communications Group - Communications Directorate",ADECCO UK LTD,998596,596.524
"Department for Business, Innovation and Skills","Department for Business, Innovation and Skills",21/06/2010,Hire of Agency Staff (Clerical/Secretariat/Other),"Legal, People & Communications Group - Communications Directorate",ADECCO UK LTD,999137,596.524
"Department for Business, Innovation and Skills","Department for Business, Innovation and Skills",28/06/2010,Hire of Agency Staff (Clerical/Secretariat/Other),Strategy Group - Strategy Directorate,ADECCO UK LTD,999692,604.58
"Department for Business, Innovation and Skills","Department for Business, Innovation and Skills",01/06/2010,Hire of Agency Staff (Clerical/Secretariat/Other),Fair Markets Group Summary - Europe Directorate,ADECCO UK LTD,997124,604.69025
"Department for Business, Innovation and Skills","Department for Business, Innovation and Skills",11/06/2010,Hire of Agency Staff (Clerical/Secretariat/Other),"Legal, People & Communications Group - Communications Directorate",ADECCO UK LTD,998176,606.89925
"Department for Business, Innovation and Skills","Department for Business, Innovation and Skills",11/06/2010,Hire of Agency Staff (Clerical/Secretariat/Other),"Legal, People & Communications Group - Communications Directorate",ADECCO UK LTD,998176,607.475
"Department for Business, Innovation and Skills","Department for Business, Innovation and Skills",28/06/2010,Hire of Agency Staff (Clerical/Secretariat/Other),Business Group - Advanced Manufacturing Industries,ADECCO UK LTD,999730,609.24925
"Department for Business, Innovation and Skills","Department for Business, Innovation and Skills",18/06/2010,Hire of Agency Staff (Clerical/Secretariat/Other),Fair Markets Group Summary - Europe Directorate,ADECCO UK LTD,999094,612.86825
"Department for Business, Innovation and Skills","Department for Business, Innovation and Skills",18/06/2010,Hire of Agency Staff (Clerical/Secretariat/Other),"Legal, People & Communications Group - Legal",ADECCO UK LTD,999096,630.56375
"Department for Business, Innovation and Skills","Department for Business, Innovation and Skills",21/06/2010,Hire of Agency Staff (Clerical/Secretariat/Other),"Legal, People & Communications Group - Communications Directorate",ADECCO UK LTD,999138,635.628
"Department for Business, Innovation and Skills","Department for Business, Innovation and Skills",02/06/2010,Hire of Agency Staff (Clerical/Secretariat/Other),"Legal, People & Communications Group - Legal",ADECCO UK LTD,997125,637.2025
"Department for Business, Innovation and Skills","Department for Business, Innovation and Skills",16/06/2010,Hire of Agency Staff (Clerical/Secretariat/Other),"Innovation, Enterprise & Better Regulation Executive - Better Regulation Executive (BRE)",ADECCO UK LTD,998585,639.37625
"Department for Business, Innovation and Skills","Department for Business, Innovation and Skills",07/06/2010,Hire of Agency Staff (Clerical/Secretariat/Other),"Innovation, Enterprise & Better Regulation Executive - Better Regulation Executive (BRE)",ADECCO UK LTD,997665,660.19725
"Department for Business, Innovation and Skills","Department for Business, Innovation and Skills",02/06/2010,Hire of Agency Staff (Clerical/Secretariat/Other),Business Group - Advanced Manufacturing Industries,ADECCO UK LTD,997166,670.1025
"Department for Business, Innovation and Skills","Department for Business, Innovation and Skills",04/06/2010,Hire of Agency Staff (Clerical/Secretariat/Other),"Legal, People & Communications Group - Communications Directorate",ADECCO UK LTD,997591,676.612
"Department for Business, Innovation and Skills","Department for Business, Innovation and Skills",04/06/2010,Hire of Agency Staff (Clerical/Secretariat/Other),Business Group - Advanced Manufacturing Industries,ADECCO UK LTD,997593,680.10175
"Department for Business, Innovation and Skills","Department for Business, Innovation and Skills",22/06/2010,Hire of Agency Staff (Clerical/Secretariat/Other),Business Group - Advanced Manufacturing Industries,ADECCO UK LTD,999135,680.10175
"Department for Business, Innovation and Skills","Department for Business, Innovation and Skills",28/06/2010,Hire of Agency Staff (Clerical/Secretariat/Other),Business Group - Advanced Manufacturing Industries,ADECCO UK LTD,999711,690.994
"Department for Business, Innovation and Skills","Department for Business, Innovation and Skills",28/06/2010,Hire of Agency Staff (Clerical/Secretariat/Other),Business Group - Advanced Manufacturing Industries,ADECCO UK LTD,999710,710.3815
"Department for Business, Innovation and Skills","Department for Business, Innovation and Skills",28/06/2010,Hire of Agency Staff (Clerical/Secretariat/Other),Finance & Commercial Group - Information and Workplace Strategies,ADECCO UK LTD,999728,727.8655
"Department for Business, Innovation and Skills","Department for Business, Innovation and Skills",25/06/2010,Hire of Agency Staff (Clerical/Secretariat/Other),"Legal, People & Communications Group - Legal",ADECCO UK LTD,999709,734.92725
"Department for Business, Innovation and Skills","Department for Business, Innovation and Skills",30/06/2010,Hire of Agency Staff (Clerical/Secretariat/Other),Strategic Policy Analysis - Strategic Policy Analysis,ADECCO UK LTD,999697,738.28775
"Department for Business, Innovation and Skills","Department for Business, Innovation and Skills",28/06/2010,Hire of Agency Staff (Clerical/Secretariat/Other),"Innovation, Enterprise & Better Regulation Executive - Enterprise Directorate",ADECCO UK LTD,999725,754.71425
"Department for Business, Innovation and Skills","Department for Business, Innovation and Skills",16/06/2010,Hire of Agency Staff (Clerical/Secretariat/Other),"Innovation, Enterprise & Better Regulation Executive - Enterprise Directorate",ADECCO UK LTD,998592,760.272
"Department for Business, Innovation and Skills","Department for Business, Innovation and Skills",16/06/2010,Hire of Agency Staff (Clerical/Secretariat/Other),Finance & Commercial Group - Information and Workplace Strategies,ADECCO UK LTD,998598,764.314
"Department for Business, Innovation and Skills","Department for Business, Innovation and Skills",16/06/2010,Hire of Agency Staff (Clerical/Secretariat/Other),Finance & Commercial Group - Information and Workplace Strategies,ADECCO UK LTD,998583,779.92975
"Department for Business, Innovation and Skills","Department for Business, Innovation and Skills",08/06/2010,Hire of Agency Staff (Clerical/Secretariat/Other),"Legal, People & Communications Group - Legal",ADECCO UK LTD,997818,787.12075
"Department for Business, Innovation and Skills","Department for Business, Innovation and Skills",15/06/2010,Hire of Agency Staff (Clerical/Secretariat/Other),Shareholder Executive - Shareholder Executive,ADECCO UK LTD,998574,790.34025
"Department for Business, Innovation and Skills","Department for Business, Innovation and Skills",24/06/2010,Hire of Agency Staff (Clerical/Secretariat/Other),"Innovation, Enterprise & Better Regulation Executive - Better Regulation Executive (BRE)",ADECCO UK LTD,999083,795.5455
"Department for Business, Innovation and Skills","Department for Business, Innovation and Skills",28/06/2010,Hire of Agency Staff (Clerical/Secretariat/Other),"Innovation, Enterprise & Better Regulation Executive - Better Regulation Executive (BRE)",ADECCO UK LTD,999737,795.5455
"Department for Business, Innovation and Skills","Department for Business, Innovation and Skills",16/06/2010,Hire of Agency Staff (Clerical/Secretariat/Other),Strategic Policy Analysis - Strategic Policy Analysis,ADECCO UK LTD,998571,826.78875
"Department for Business, Innovation and Skills","Department for Business, Innovation and Skills",28/06/2010,Hire of Agency Staff (Clerical/Secretariat/Other),Fair Markets Group Summary - Corporate Law and Governance,ADECCO UK LTD,999727,848.8905
"Department for Business, Innovation and Skills","Department for Business, Innovation and Skills",16/06/2010,Hire of Agency Staff (Clerical/Secretariat/Other),Shareholder Executive - Shareholder Executive,ADECCO UK LTD,998604,858.0085
"Department for Business, Innovation and Skills","Department for Business, Innovation and Skills",22/06/2010,Hire of Agency Staff (Clerical/Secretariat/Other),"Innovation, Enterprise & Better Regulation Executive - Enterprise Directorate",ADECCO UK LTD,999090,890.35625
"Department for Business, Innovation and Skills","Department for Business, Innovation and Skills",30/06/2010,Hire of Agency Staff (Clerical/Secretariat/Other),Strategic Policy Analysis - Strategic Policy Analysis,ADECCO UK LTD,999694,894.44525
"Department for Business, Innovation and Skills","Department for Business, Innovation and Skills",30/06/2010,Hire of Agency Staff (Clerical/Secretariat/Other),Strategic Policy Analysis - Strategic Policy Analysis,ADECCO UK LTD,999696,941.30425
"Department for Business, Innovation and Skills","Department for Business, Innovation and Skills",02/06/2010,Hire of Agency Staff (Clerical/Secretariat/Other),"Innovation, Enterprise & Better Regulation Executive - Enterprise Directorate",ADECCO UK LTD,997142,951.80875
"Department for Business, Innovation and Skills","Department for Business, Innovation and Skills",08/06/2010,Hire of Agency Staff (Clerical/Secretariat/Other),"Innovation, Enterprise & Better Regulation Executive - Enterprise Directorate",ADECCO UK LTD,997587,957.40175
"Department for Business, Innovation and Skills","Department for Business, Innovation and Skills",07/06/2010,Hire of Agency Staff (Professional/Management),Finance & Commercial Group - Finance Group,ALLEN LANE LTD,997603,5052.5
"Department for Business, Innovation and Skills","Department for Business, Innovation and Skills",28/06/2010,Hire of Agency Staff (Professional/Management),Finance & Commercial Group - Finance Group,ALLEN LANE LTD,999756,7578.75
"Department for Business, Innovation and Skills","Department for Business, Innovation and Skills",03/06/2010,Car Hire and Leasing,Fair Markets Group Summary - ECO,ARVAL (UK) LTD,997467,-263.92
"Department for Business, Innovation and Skills","Department for Business, Innovation and Skills",30/06/2010,Car Hire and Leasing,Fair Markets Group Summary - ECO,ARVAL (UK) LTD,1000116,-219.51
"Department for Business, Innovation and Skills","Department for Business, Innovation and Skills",04/06/2010,Car Hire and Leasing,Universities and Skills Group - USG Admin,ARVAL (UK) LTD,996908,-216.4585
"Department for Business, Innovation and Skills","Department for Business, Innovation and Skills",09/06/2010,Car Hire and Leasing,"Legal, People & Communications Group - Legal",ARVAL (UK) LTD,997466,527.3635
"Department for Business, Innovation and Skills","Department for Business, Innovation and Skills",22/06/2010,External Training,Universities and Skills Group - USG Admin,ASCOLTO LTD,999018,880.92
"Department for Business, Innovation and Skills","Department for Business, Innovation and Skills",29/06/2010,Other Training Costs,Fair Markets Group Summary - Fair Markets Director General's Office,ASHBOURNE ASSESSMENT SYSTEMS LTD,999885,7314.9
"Department for Business, Innovation and Skills","Department for Business, Innovation and Skills",03/06/2010,Finance & Accounting Advice,Shareholder Executive - Shareholder Executive,ASHURST LLP,997478,5019.3
"Department for Business, Innovation and Skills","Department for Business, Innovation and Skills",30/06/2010,Other UK T&S,Ministerial and Parliamentary Support Team - Ministerial and Parliamentary Support Team,BAA BUSINESS SUPPORT CENTRE LTD,989453,-1656
"Department for Business, Innovation and Skills","Department for Business, Innovation and Skills",30/06/2010,Other Overseas T&S,Ministerial and Parliamentary Support Team - Ministerial and Parliamentary Support Team,BAA BUSINESS SUPPORT CENTRE LTD,999373,-828
"Department for Business, Innovation and Skills","Department for Business, Innovation and Skills",30/06/2010,Other Overseas T&S,Ministerial and Parliamentary Support Team - Ministerial and Parliamentary Support Team,BAA BUSINESS SUPPORT CENTRE LTD,999507,846
"Department for Business, Innovation and Skills","Department for Business, Innovation and Skills",09/06/2010,Office Supplies,Finance & Commercial Group - Information and Workplace Strategies,BANNER BUSINESS SERVICES LTD,997932,-69.07825
"Department for Business, Innovation and Skills","Department for Business, Innovation and Skills",09/06/2010,Office Supplies,Finance & Commercial Group - Information and Workplace Strategies,BANNER BUSINESS SERVICES LTD,997937,795.475
"Department for Business, Innovation and Skills","Department for Business, Innovation and Skills",09/06/2010,Office Supplies,Finance & Commercial Group - Information and Workplace Strategies,BANNER BUSINESS SERVICES LTD,997936,795.475
"Department for Business, Innovation and Skills","Department for Business, Innovation and Skills",16/06/2010,Media Services,Universities and Skills Group - USG Admin,BLACKBIRD PRODUCTIONS,998742,12906
"Department for Business, Innovation and Skills","Department for Business, Innovation and Skills",23/06/2010,Publications,"Legal, People & Communications Group - Legal",BLACKWELL UK LTD,999348,1430
"Department for Business, Innovation and Skills","Department for Business, Innovation and Skills",21/06/2010,Telecommunications,Fair Markets Group Summary - ECO,BRITISH TELECOMMUNICATIONS plc,997964,-132.08175
"Department for Business, Innovation and Skills","Department for Business, Innovation and Skills",30/06/2010,Static Line Rental,"Legal, People & Communications Group - Legal",BRITISH TELECOMMUNICATIONS plc (BT),999966,-30.973
"Department for Business, Innovation and Skills","Department for Business, Innovation and Skills",16/06/2010,Static Line Rental,Ministerial and Parliamentary Support Team - Ministerial and Parliamentary Support Team,BRITISH TELECOMMUNICATIONS plc (BT),998294,-8.98875
"Department for Business, Innovation and Skills","Department for Business, Innovation and Skills",14/06/2010,Static Line Rental,Fair Markets Group Summary - Employment Relations,BRITISH TELECOMMUNICATIONS plc (BT),998356,-0.01175
"Department for Business, Innovation and Skills","Department for Business, Innovation and Skills",22/06/2010,Static Call Charges,Fair Markets Group Summary - Employment Relations,BRITISH TELECOMMUNICATIONS plc (BT),999313,-8.98875
"Department for Business, Innovation and Skills","Department for Business, Innovation and Skills",22/06/2010,Static Call Charges,Fair Markets Group Summary - Employment Relations,BRITISH TELECOMMUNICATIONS plc (BT),999317,-8.98875
"Department for Business, Innovation and Skills","Department for Business, Innovation and Skills",22/06/2010,Static Call Charges,Fair Markets Group Summary - Employment Relations,BRITISH TELECOMMUNICATIONS plc (BT),999307,-8.98875
"Department for Business, Innovation and Skills","Department for Business, Innovation and Skills",14/06/2010,Local IT Maintenance & Support,SCIENCE & RESEARCH GROUP - UK Space Agency,BRITISH TELECOMMUNICATIONS plc (BT),997584,-112.76475
"Department for Business, Innovation and Skills","Department for Business, Innovation and Skills",15/06/2010,Hire of Agency Staff (Professional/Management),Business Group - Business Environment and Growth Directorate,BROOK STREET (UK) LTD,998377,653.8875
"Department for Business, Innovation and Skills","Department for Business, Innovation and Skills",09/06/2010,Hire of Agency Staff (Professional/Management),Business Group - Business Environment and Growth Directorate,BROOK STREET (UK) LTD,997823,672.57
"Department for Business, Innovation and Skills","Department for Business, Innovation and Skills",29/06/2010,Hire of Agency Staff (Professional/Management),Business Group - Business Environment and Growth Directorate,BROOK STREET (UK) LTD,999802,691.2525
"Department for Business, Innovation and Skills","Department for Business, Innovation and Skills",15/06/2010,Hire of Agency Staff (Professional/Management),Business Group - Business Environment and Growth Directorate,BROOK STREET (UK) LTD,998376,705.2585
"Department for Business, Innovation and Skills","Department for Business, Innovation and Skills",22/06/2010,Hire of Agency Staff (Professional/Management),Business Group - Business Environment and Growth Directorate,BROOK STREET (UK) LTD,999302,705.2585
"Department for Business, Innovation and Skills","Department for Business, Innovation and Skills",02/06/2010,Hire of Agency Staff (Professional/Management),Business Group - Business Environment and Growth Directorate,BROOK STREET (UK) LTD,997285,794.00625
"Department for Business, Innovation and Skills","Department for Business, Innovation and Skills",22/06/2010,Hire of Agency Staff (Professional/Management),Business Group - Business Environment and Growth Directorate,BROOK STREET (UK) LTD,999291,812.68875
"Department for Business, Innovation and Skills","Department for Business, Innovation and Skills",29/06/2010,Hire of Agency Staff (Professional/Management),Business Group - Business Environment and Growth Directorate,BROOK STREET (UK) LTD,999811,812.68875
"Department for Business, Innovation and Skills","Department for Business, Innovation and Skills",14/06/2010,Hire of Agency Staff (Clerical/Secretariat/Other),"Innovation, Enterprise & Better Regulation Executive - Enterprise Directorate",BROOK STREET (UK) LTD,998210,-542.6385
"Department for Business, Innovation and Skills","Department for Business, Innovation and Skills",16/06/2010,Hire of Agency Staff (Clerical/Secretariat/Other),Finance & Commercial Group - Information and Workplace Strategies,BROOK STREET (UK) LTD,998420,-486.45
"Department for Business, Innovation and Skills","Department for Business, Innovation and Skills",16/06/2010,Hire of Agency Staff (Clerical/Secretariat/Other),Finance & Commercial Group - Information and Workplace Strategies,BROOK STREET (UK) LTD,998420,-166.32125
"Department for Business, Innovation and Skills","Department for Business, Innovation and Skills",15/06/2010,Hire of Agency Staff (Clerical/Secretariat/Other),Shareholder Executive - Shareholder Executive,BROOK STREET (UK) LTD,998495,541.7925
"Department for Business, Innovation and Skills","Department for Business, Innovation and Skills",14/06/2010,Hire of Agency Staff (Clerical/Secretariat/Other),"Innovation, Enterprise & Better Regulation Executive - Enterprise Directorate",BROOK STREET (UK) LTD,998210,542.6385
"Department for Business, Innovation and Skills","Department for Business, Innovation and Skills",14/06/2010,Hire of Agency Staff (Clerical/Secretariat/Other),"Innovation, Enterprise & Better Regulation Executive - Enterprise Directorate",BROOK STREET (UK) LTD,998210,542.6385
"Department for Business, Innovation and Skills","Department for Business, Innovation and Skills",14/06/2010,Hire of Agency Staff (Clerical/Secretariat/Other),"Innovation, Enterprise & Better Regulation Executive - Enterprise Directorate",BROOK STREET (UK) LTD,998211,557.608
"Department for Business, Innovation and Skills","Department for Business, Innovation and Skills",14/06/2010,Hire of Agency Staff (Clerical/Secretariat/Other),Shareholder Executive - Shareholder Executive,BROOK STREET (UK) LTD,998375,569.81625
"Department for Business, Innovation and Skills","Department for Business, Innovation and Skills",14/06/2010,Hire of Agency Staff (Clerical/Secretariat/Other),"Innovation, Enterprise & Better Regulation Executive - Enterprise Directorate",BROOK STREET (UK) LTD,998355,572.5775
"Department for Business, Innovation and Skills","Department for Business, Innovation and Skills",22/06/2010,Hire of Agency Staff (Clerical/Secretariat/Other),"Innovation, Enterprise & Better Regulation Executive - Enterprise Directorate",BROOK STREET (UK) LTD,999385,595.03175
"Department for Business, Innovation and Skills","Department for Business, Innovation and Skills",15/06/2010,Hire of Agency Staff (Clerical/Secretariat/Other),Finance & Commercial Group - Information and Workplace Strategies,BROOK STREET (UK) LTD,998419,607.18125
"Department for Business, Innovation and Skills","Department for Business, Innovation and Skills",28/06/2010,Hire of Agency Staff (Clerical/Secretariat/Other),Shareholder Executive - Shareholder Executive,BROOK STREET (UK) LTD,999807,607.18125
"Department for Business, Innovation and Skills","Department for Business, Innovation and Skills",30/06/2010,Hire of Agency Staff (Clerical/Secretariat/Other),"Innovation, Enterprise & Better Regulation Executive - Enterprise Directorate",BROOK STREET (UK) LTD,1000098,632.4555
"Department for Business, Innovation and Skills","Department for Business, Innovation and Skills",02/06/2010,Hire of Agency Staff (Clerical/Secretariat/Other),Shareholder Executive - Shareholder Executive,BROOK STREET (UK) LTD,997289,644.54625
"Department for Business, Innovation and Skills","Department for Business, Innovation and Skills",21/06/2010,Hire of Agency Staff (Clerical/Secretariat/Other),Shareholder Executive - Shareholder Executive,BROOK STREET (UK) LTD,999267,672.57
"Department for Business, Innovation and Skills","Department for Business, Innovation and Skills",09/06/2010,Hire of Agency Staff (Clerical/Secretariat/Other),Finance & Commercial Group - Information and Workplace Strategies,BROOK STREET (UK) LTD,997956,681.91125
"Department for Business, Innovation and Skills","Department for Business, Innovation and Skills",08/06/2010,Hire of Agency Staff (Clerical/Secretariat/Other),Shareholder Executive - Shareholder Executive,BROOK STREET (UK) LTD,997822,691.2525
"Department for Business, Innovation and Skills","Department for Business, Innovation and Skills",22/06/2010,Hire of Agency Staff (Clerical/Secretariat/Other),Shareholder Executive - Shareholder Executive,BROOK STREET (UK) LTD,999279,705.2585
"Department for Business, Innovation and Skills","Department for Business, Innovation and Skills",02/06/2010,Hire of Agency Staff (Clerical/Secretariat/Other),Shareholder Executive - Shareholder Executive,BROOK STREET (UK) LTD,997236,709.935
"Department for Business, Innovation and Skills","Department for Business, Innovation and Skills",28/06/2010,Hire of Agency Staff (Clerical/Secretariat/Other),Shareholder Executive - Shareholder Executive,BROOK STREET (UK) LTD,999798,709.935
"Department for Business, Innovation and Skills","Department for Business, Innovation and Skills",08/06/2010,Hire of Agency Staff (Clerical/Secretariat/Other),Shareholder Executive - Shareholder Executive,BROOK STREET (UK) LTD,997854,714.59975
"Department for Business, Innovation and Skills","Department for Business, Innovation and Skills",28/06/2010,Hire of Agency Staff (Clerical/Secretariat/Other),Finance & Commercial Group - Information and Workplace Strategies,BROOK STREET (UK) LTD,999805,719.27625
"Department for Business, Innovation and Skills","Department for Business, Innovation and Skills",28/06/2010,Hire of Agency Staff (Clerical/Secretariat/Other),Shareholder Executive - Shareholder Executive,BROOK STREET (UK) LTD,999809,728.6175
"Department for Business, Innovation and Skills","Department for Business, Innovation and Skills",22/06/2010,Hire of Agency Staff (Clerical/Secretariat/Other),Shareholder Executive - Shareholder Executive,BROOK STREET (UK) LTD,999270,737.95875
"Department for Business, Innovation and Skills","Department for Business, Innovation and Skills",02/06/2010,Hire of Agency Staff (Clerical/Secretariat/Other),Shareholder Executive - Shareholder Executive,BROOK STREET (UK) LTD,997245,742.6235
"Department for Business, Innovation and Skills","Department for Business, Innovation and Skills",09/06/2010,Hire of Agency Staff (Clerical/Secretariat/Other),Shareholder Executive - Shareholder Executive,BROOK STREET (UK) LTD,997954,751.96475
"Department for Business, Innovation and Skills","Department for Business, Innovation and Skills",02/06/2010,Hire of Agency Staff (Clerical/Secretariat/Other),Finance & Commercial Group - Information and Workplace Strategies,BROOK STREET (UK) LTD,997250,761.306
"Department for Business, Innovation and Skills","Department for Business, Innovation and Skills",15/06/2010,Hire of Agency Staff (Clerical/Secretariat/Other),Shareholder Executive - Shareholder Executive,BROOK STREET (UK) LTD,998423,789.4355
"Department for Business, Innovation and Skills","Department for Business, Innovation and Skills",02/06/2010,Hire of Agency Staff (Clerical/Secretariat/Other),Finance & Commercial Group - Information and Workplace Strategies,BROOK STREET (UK) LTD,997239,806.238
"Department for Business, Innovation and Skills","Department for Business, Innovation and Skills",15/06/2010,Hire of Agency Staff (Clerical/Secretariat/Other),Finance & Commercial Group - Information and Workplace Strategies,BROOK STREET (UK) LTD,998374,806.238
"Department for Business, Innovation and Skills","Department for Business, Innovation and Skills",23/06/2010,Hire of Agency Staff (Clerical/Secretariat/Other),Finance & Commercial Group - Information and Workplace Strategies,BROOK STREET (UK) LTD,999280,806.238
"Department for Business, Innovation and Skills","Department for Business, Innovation and Skills",29/06/2010,Hire of Agency Staff (Clerical/Secretariat/Other),Finance & Commercial Group - Information and Workplace Strategies,BROOK STREET (UK) LTD,999800,806.238
"Department for Business, Innovation and Skills","Department for Business, Innovation and Skills",09/06/2010,Hire of Agency Staff (Clerical/Secretariat/Other),Shareholder Executive - Shareholder Executive,BROOK STREET (UK) LTD,997953,1046.98375
"Department for Business, Innovation and Skills","Department for Business, Innovation and Skills",22/06/2010,Hire of Agency Staff (Clerical/Secretariat/Other),Shareholder Executive - Shareholder Executive,BROOK STREET (UK) LTD,999300,1058.1815
"Department for Business, Innovation and Skills","Department for Business, Innovation and Skills",28/06/2010,Hire of Agency Staff (Clerical/Secretariat/Other),Shareholder Executive - Shareholder Executive,BROOK STREET (UK) LTD,999801,1080.577
"Department for Business, Innovation and Skills","Department for Business, Innovation and Skills",02/06/2010,Hire of Agency Staff (Clerical/Secretariat/Other),Shareholder Executive - Shareholder Executive,BROOK STREET (UK) LTD,997242,1097.3795
"Department for Business, Innovation and Skills","Department for Business, Innovation and Skills",01/06/2010,Hotels Overseas,Business Group - Information Economy,BRUSSELS EUROPA,996924,-230.622
"Department for Business, Innovation and Skills","Department for Business, Innovation and Skills",01/06/2010,Hotels Overseas,SCIENCE & RESEARCH GROUP - RESEARCH BASE,BRUSSELS EUROPA,996914,605.166
"Department for Business, Innovation and Skills","Department for Business, Innovation and Skills",15/06/2010,Telecommunications,Finance & Commercial Group - Information and Workplace Strategies,BT UK BUSINESS ACCOUNTS,998543,-52.578
"Department for Business, Innovation and Skills","Department for Business, Innovation and Skills",30/06/2010,Centrally Funded Training,"Innovation, Enterprise & Better Regulation Executive - Better Regulation Executive (BRE)",CABINET OFFICE,999894,-11908
"Department for Business, Innovation and Skills","Department for Business, Innovation and Skills",30/06/2010,Centrally Funded Training,"Innovation, Enterprise & Better Regulation Executive - Better Regulation Executive (BRE)",CABINET OFFICE,999894,11908
"Department for Business, Innovation and Skills","Department for Business, Innovation and Skills",30/06/2010,Centrally Funded Training,"Innovation, Enterprise & Better Regulation Executive - Better Regulation Executive (BRE)",CABINET OFFICE,999894,11908
"Department for Business, Innovation and Skills","Department for Business, Innovation and Skills",21/06/2010,Economic Consultancy & Research,Business Group - Life Sciences,CELS BUSINESS SERVICES LTD,999156,6840
"Department for Business, Innovation and Skills","Department for Business, Innovation and Skills",24/06/2010,External Training,"Legal, People & Communications Group - Legal",CENTRAL LAW TRAININGLTD,999520,-763.75
"Department for Business, Innovation and Skills","Department for Business, Innovation and Skills",24/06/2010,External Training,"Legal, People & Communications Group - Legal",CENTRAL LAW TRAININGLTD,999520,747.5
"Department for Business, Innovation and Skills","Department for Business, Innovation and Skills",24/06/2010,External Training,"Legal, People & Communications Group - Legal",CENTRAL LAW TRAININGLTD,999520,763.75
"Department for Business, Innovation and Skills","Department for Business, Innovation and Skills",21/06/2010,External Training,"Innovation, Enterprise & Better Regulation Executive - Innovation",CENTRE FOR PARLIAMENTARY STUDIES LTD,999223,860
"Department for Business, Innovation and Skills","Department for Business, Innovation and Skills",03/06/2010,Internal Training,Fair Markets Group Summary - Employment Relations,CENTRE FOR PARLIAMENTARY STUDIES LTD,997176,-1000
"Department for Business, Innovation and Skills","Department for Business, Innovation and Skills",03/06/2010,Internal Training,Fair Markets Group Summary - Employment Relations,CENTRE FOR PARLIAMENTARY STUDIES LTD,997176,1000
"Department for Business, Innovation and Skills","Department for Business, Innovation and Skills",03/06/2010,Internal Training,Fair Markets Group Summary - Employment Relations,CENTRE FOR PARLIAMENTARY STUDIES LTD,997176,1000
"Department for Business, Innovation and Skills","Department for Business, Innovation and Skills",01/06/2010,Economic Consultancy & Research,Fair Markets Group Summary - Europe and World Trade Directorates,CEPII CENTRE D'ETUDES PROSPECTIVES ET D'INFORMATIONS INTERNATIONALES,997015,20000
"Department for Business, Innovation and Skills","Department for Business, Innovation and Skills",08/06/2010,External Training,Business Group - Information Economy,CHOCOLATE DELIGHT LTD,997519,4700
"Department for Business, Innovation and Skills","Department for Business, Innovation and Skills",22/06/2010,Information Facilities,Universities and Skills Group - USG Admin,CINDY BUTTS,999290,3953.5
"Department for Business, Innovation and Skills","Department for Business, Innovation and Skills",08/06/2010,Publications,"Legal, People & Communications Group - Communications Directorate",CISION UK LTD,997906,732
"Department for Business, Innovation and Skills","Department for Business, Innovation and Skills",22/06/2010,Corporate Management Consultancy,"Innovation, Enterprise & Better Regulation Executive - Better Regulation Executive (BRE)",COMPASS ROSE & CO,999330,3400
"Department for Business, Innovation and Skills","Department for Business, Innovation and Skills",15/06/2010,Hire of Agency Staff (Professional/Management),"Business Group - Solutions for Business, Low Carbon & Services",CONSTRUCTION INDUSTRY COUNCIL,998493,11759.16
"Department for Business, Innovation and Skills","Department for Business, Innovation and Skills",09/06/2010,Hire of Agency Staff (Professional/Management),Finance & Commercial Group - Finance Group,PARITY RESOURCES LTD,997621,2778.55775
"Department for Business, Innovation and Skills","Department for Business, Innovation and Skills",09/06/2010,Hire of Agency Staff (Professional/Management),Finance & Commercial Group - Finance Group,PARITY RESOURCES LTD,997621,5682.3
"Department for Business, Innovation and Skills","Department for Business, Innovation and Skills",09/06/2010,Hire of Agency Staff (Professional/Management),Finance & Commercial Group - Finance Group,PARITY RESOURCES LTD,997621,6691.94225
"Department for Business, Innovation and Skills","Department for Business, Innovation and Skills",08/06/2010,Hire of Agency Staff (Professional/Management),Finance & Commercial Group - Finance Group,PARITY RESOURCES LTD,997790,9610.9125
"Department for Business, Innovation and Skills","Department for Business, Innovation and Skills",18/06/2010,Staff Transfer/Detached Duty Costs,SCIENCE & RESEARCH GROUP - UK Space Agency,"Personal Expense, Name Witheld",10270412,568.4
"Department for Business, Innovation and Skills","Department for Business, Innovation and Skills",16/06/2010,Staff Transfer/Detached Duty Costs,"Innovation, Enterprise & Better Regulation Executive - Innovation","Personal Expense, Name Witheld",10270309,718.4
"Department for Business, Innovation and Skills","Department for Business, Innovation and Skills",17/06/2010,Rail Fares,Universities and Skills Group - USG Admin,"Personal Expense, Name Witheld",10270369,615.9
"Department for Business, Innovation and Skills","Department for Business, Innovation and Skills",03/06/2010,Air Fares,Office of Manpower Economics - Office of Manpower Economics,"Personal Expense, Name Witheld",10269919,501.08
"Department for Business, Innovation and Skills","Department for Business, Innovation and Skills",14/06/2010,Subsistence Payments,Office of Manpower Economics - Office of Manpower Economics,"Personal Expense, Name Witheld",10270231,598.7
"Department for Business, Innovation and Skills","Department for Business, Innovation and Skills",09/06/2010,Air Fares Overseas,GOVERNMENT OFFICE FOR SCIENCE - GOVERNMENT OFFICE FOR SCIENCE,"Personal Expense, Name Witheld",10269929,1262.060049
"Department for Business, Innovation and Skills","Department for Business, Innovation and Skills",07/06/2010,Air Fares Overseas,Business Group - Information Economy,"Personal Expense, Name Witheld",10270011,1623
"Department for Business, Innovation and Skills","Department for Business, Innovation and Skills",30/06/2010,Hotels Overseas,Business Group - Advanced Manufacturing Industries,"Personal Expense, Name Witheld",10270818,527.72
"Department for Business, Innovation and Skills","Department for Business, Innovation and Skills",23/06/2010,Hotels Overseas,Business Group - Advanced Manufacturing Industries,"Personal Expense, Name Witheld",10270642,561.93
"Department for Business, Innovation and Skills","Department for Business, Innovation and Skills",09/06/2010,Hotels Overseas,"Business Group - Solutions for Business, Low Carbon & Services","Personal Expense, Name Witheld",10270108,724.18
"Department for Business, Innovation and Skills","Department for Business, Innovation and Skills",11/06/2010,Hotels Overseas,Business Group - Information Economy,"Personal Expense, Name Witheld",10270208,725.42
"Department for Business, Innovation and Skills","Department for Business, Innovation and Skills",09/06/2010,Hotels Overseas,Business Group - Information Economy,"Personal Expense, Name Witheld",10270101,751.31
"Department for Business, Innovation and Skills","Department for Business, Innovation and Skills",10/06/2010,Hotels Overseas,Fair Markets Group Summary - ECO,"Personal Expense, Name Witheld",10270155,815
"Department for Business, Innovation and Skills","Department for Business, Innovation and Skills",08/06/2010,Hotels Overseas,Business Group - Advanced Manufacturing Industries,"Personal Expense, Name Witheld",10270041,868.2
"Department for Business, Innovation and Skills","Department for Business, Innovation and Skills",04/06/2010,Hotels Overseas,Fair Markets Group Summary - ECO,"Personal Expense, Name Witheld",10269952,1600.27
"Department for Business, Innovation and Skills","Department for Business, Innovation and Skills",04/06/2010,Subsistence Payments Overseas,Fair Markets Group Summary - ECO,"Personal Expense, Name Witheld",10269952,599.5
"Department for Business, Innovation and Skills","Department for Business, Innovation and Skills",09/06/2010,Subsistence Payments Overseas,Business Group - Information Economy,"Personal Expense, Name Witheld",10270101,685.41
"Department for Business, Innovation and Skills","Department for Business, Innovation and Skills",07/06/2010,Subsistence Payments Overseas,Business Group - Information Economy,"Personal Expense, Name Witheld",10270011,835.21
"Department for Business, Innovation and Skills","Department for Business, Innovation and Skills",17/06/2010,Subsistence Payments Overseas,Fair Markets Group Summary - Employment Relations,"Personal Expense, Name Witheld",10270388,1011.02
"Department for Business, Innovation and Skills","Department for Business, Innovation and Skills",11/06/2010,External Training,Ministerial and Parliamentary Support Team - Ministerial and Parliamentary Support Team,Personnel Training Services Consortium (PTSC),976173,525
"Department for Business, Innovation and Skills","Department for Business, Innovation and Skills",11/06/2010,External Training,"Legal, People & Communications Group - HRCM - Human Resources and Change Management Directorate",Personnel Training Services Consortium (PTSC),976173,705
"Department for Business, Innovation and Skills","Department for Business, Innovation and Skills",11/06/2010,External Training,"Legal, People & Communications Group - HRCM - Human Resources and Change Management Directorate",Personnel Training Services Consortium (PTSC),976173,705
"Department for Business, Innovation and Skills","Department for Business, Innovation and Skills",11/06/2010,External Training,"Innovation, Enterprise & Better Regulation Executive - Enterprise Directorate",Personnel Training Services Consortium (PTSC),979078,925
"Department for Business, Innovation and Skills","Department for Business, Innovation and Skills",11/06/2010,Internal Training,Fair Markets Group Summary - Corporate Law and Governance,Personnel Training Services Consortium (PTSC),976173,525
"Department for Business, Innovation and Skills","Department for Business, Innovation and Skills",11/06/2010,Internal Training,Business Group - Business Environment Unit,Personnel Training Services Consortium (PTSC),979078,880
"Department for Business, Innovation and Skills","Department for Business, Innovation and Skills",11/06/2010,Centrally Funded Training,Fair Markets Group Summary - Employment Relations,Personnel Training Services Consortium (PTSC),976173,525
"Department for Business, Innovation and Skills","Department for Business, Innovation and Skills",11/06/2010,ADP Training,"Legal, People & Communications Group - HRCM - Human Resources and Change Management Directorate",Personnel Training Services Consortium (PTSC),979078,880
"Department for Business, Innovation and Skills","Department for Business, Innovation and Skills",15/06/2010,Other External Recruitment Costs (Staff),Business Group - Information Economy,PINSENT MASONS LLP,998563,10500
"Department for Business, Innovation and Skills","Department for Business, Innovation and Skills",15/06/2010,Other External Recruitment Costs (Staff),Business Group - Information Economy,PINSENT MASONS LLP,998564,10519.8
"Department for Business, Innovation and Skills","Department for Business, Innovation and Skills",21/06/2010,Hire of Conference Facilities,Universities and Skills Group - USG Admin,POSTE HOTELS LTD,999130,3247.92325
"Department for Business, Innovation and Skills","Department for Business, Innovation and Skills",24/06/2010,External Training,Fair Markets Group Summary - Employment Relations,PRAESTA PARTNERS LLP,999512,2850
"Department for Business, Innovation and Skills","Department for Business, Innovation and Skills",28/06/2010,External Training,Business Group - Economic Development Directorate,PRAESTA PARTNERS LLP,999700,5343.75
"Department for Business, Innovation and Skills","Department for Business, Innovation and Skills",30/06/2010,Internal Audit Services,Finance & Commercial Group - Finance Group,PRICEWATERHOUSECOOPERS LLP,999747,-324000
"Department for Business, Innovation and Skills","Department for Business, Innovation and Skills",30/06/2010,Internal Audit Services,Finance & Commercial Group - Finance Group,PRICEWATERHOUSECOOPERS LLP,999747,-157000
"Department for Business, Innovation and Skills","Department for Business, Innovation and Skills",30/06/2010,Internal Audit Services,Finance & Commercial Group - Finance Group,PRICEWATERHOUSECOOPERS LLP,999747,3600
"Department for Business, Innovation and Skills","Department for Business, Innovation and Skills",02/06/2010,Internal Audit Services,Universities and Skills Group - Learners,PRICEWATERHOUSECOOPERS LLP,997301,75000
"Department for Business, Innovation and Skills","Department for Business, Innovation and Skills",02/06/2010,Internal Audit Services,Universities and Skills Group - USG Admin,PRICEWATERHOUSECOOPERS LLP,997299,124970.69
"Department for Business, Innovation and Skills","Department for Business, Innovation and Skills",30/06/2010,Internal Audit Services,Finance & Commercial Group - Finance Group,PRICEWATERHOUSECOOPERS LLP,999747,157000
"Department for Business, Innovation and Skills","Department for Business, Innovation and Skills",30/06/2010,Internal Audit Services,Finance & Commercial Group - Finance Group,PRICEWATERHOUSECOOPERS LLP,999747,157000
"Department for Business, Innovation and Skills","Department for Business, Innovation and Skills",30/06/2010,Internal Audit Services,Finance & Commercial Group - Finance Group,PRICEWATERHOUSECOOPERS LLP,999747,324000
"Department for Business, Innovation and Skills","Department for Business, Innovation and Skills",30/06/2010,Internal Audit Services,Finance & Commercial Group - Finance Group,PRICEWATERHOUSECOOPERS LLP,999747,324000
"Department for Business, Innovation and Skills","Department for Business, Innovation and Skills",15/06/2010,Technical Advice / Services & Support,Business Group - Advanced Manufacturing Industries,PROF NICK CUMPSTY,998464,3250.37
"Department for Business, Innovation and Skills","Department for Business, Innovation and Skills",10/06/2010,Publications,Fair Markets Group Summary - Europe and World Trade Directorates,PROMOTIONAL LOGISTICS LTD,998110,913.5
"Department for Business, Innovation and Skills","Department for Business, Innovation and Skills",24/06/2010,Economic Consultancy & Research,Fair Markets Group Summary - Consumer and Competition Policy,"QUEEN MARY, UNIVERSITY OF LONDON",999334,58000
"Department for Business, Innovation and Skills","Department for Business, Innovation and Skills",04/06/2010,Local IT Maintenance & Support,"Innovation, Enterprise & Better Regulation Executive - Enterprise Directorate",QUESTMARK,997556,1750.75
"Department for Business, Innovation and Skills","Department for Business, Innovation and Skills",29/06/2010,Economic Consultancy & Research,Office of Manpower Economics - Office of Manpower Economics,QUINTIGE CONSULTING GROUP LTD T/A QCG,999796,8500
"Department for Business, Innovation and Skills","Department for Business, Innovation and Skills",15/06/2010,Taxis,Universities and Skills Group - USG Admin,RADIO TAXIS GROUP LTD,998358,-138.7205
"Department for Business, Innovation and Skills","Department for Business, Innovation and Skills",28/06/2010,External Training,"Legal, People & Communications Group - HRCM - Human Resources and Change Management Directorate",REED BUSINESS INFORMATION,999765,998
"Department for Business, Innovation and Skills","Department for Business, Innovation and Skills",08/06/2010,External Training,"Legal, People & Communications Group - HRCM - Human Resources and Change Management Directorate",REED BUSINESS INFORMATION LTD,997787,549
"Department for Business, Innovation and Skills","Department for Business, Innovation and Skills",15/06/2010,Hire of Agency Staff (Professional/Management),Universities and Skills Group - USG Admin,Reed Personnel Services Ltd,998439,541.863
"Department for Business, Innovation and Skills","Department for Business, Innovation and Skills",01/06/2010,Hire of Agency Staff (Professional/Management),Universities and Skills Group - USG Admin,Reed Personnel Services Ltd,997233,612.1045
"Department for Business, Innovation and Skills","Department for Business, Innovation and Skills",15/06/2010,Hire of Agency Staff (Professional/Management),Universities and Skills Group - USG Admin,Reed Personnel Services Ltd,998442,626.3925
"Department for Business, Innovation and Skills","Department for Business, Innovation and Skills",17/06/2010,Hire of Agency Staff (Professional/Management),Universities and Skills Group - USG Admin,Reed Personnel Services Ltd,998844,631.915
"Department for Business, Innovation and Skills","Department for Business, Innovation and Skills",22/06/2010,Hire of Agency Staff (Professional/Management),Universities and Skills Group - USG Admin,Reed Personnel Services Ltd,999152,712.4495
"Department for Business, Innovation and Skills","Department for Business, Innovation and Skills",10/06/2010,Hire of Agency Staff (Professional/Management),Universities and Skills Group - USG Admin,Reed Personnel Services Ltd,998106,715.1285
"Department for Business, Innovation and Skills","Department for Business, Innovation and Skills",18/06/2010,Hire of Agency Staff (Clerical/Secretariat/Other),Ministerial and Parliamentary Support Team - Ministerial and Parliamentary Support Team,Reed Personnel Services Ltd,998865,697.79725
"Department for Business, Innovation and Skills","Department for Business, Innovation and Skills",09/06/2010,Hire of Agency Staff (Clerical/Secretariat/Other),Ministerial and Parliamentary Support Team - Ministerial and Parliamentary Support Team,Reed Personnel Services Ltd,998026,723.01275
"Department for Business, Innovation and Skills","Department for Business, Innovation and Skills",23/06/2010,Hire of Agency Staff (Clerical/Secretariat/Other),Ministerial and Parliamentary Support Team - Ministerial and Parliamentary Support Team,Reed Personnel Services Ltd,999465,857.52675
"Department for Business, Innovation and Skills","Department for Business, Innovation and Skills",08/06/2010,Hire of Agency Staff (Clerical/Secretariat/Other),Ministerial and Parliamentary Support Team - Ministerial and Parliamentary Support Team,Reed Personnel Services Ltd,997714,878.5475
"Department for Business, Innovation and Skills","Department for Business, Innovation and Skills",21/06/2010,On-Line Databases,Shareholder Executive - Shareholder Executive,REUTERS LTD,998821,9330
"Department for Business, Innovation and Skills","Department for Business, Innovation and Skills",08/06/2010,Corporate Management Consultancy,Fair Markets Group Summary - Employment Relations,RICHARD BAKER,997857,3000
"Department for Business, Innovation and Skills","Department for Business, Innovation and Skills",18/06/2010,Technical Advice / Services & Support,Shareholder Executive - Shareholder Executive,RICHARD RAMSAY LTD,999068,6604.7
"Department for Business, Innovation and Skills","Department for Business, Innovation and Skills",11/06/2010,Finance & Accounting Advice,Finance & Commercial Group - Finance Group,SAND RESOURCES LTD,998174,8854
"Department for Business, Innovation and Skills","Department for Business, Innovation and Skills",01/06/2010,Hotels Overseas,Business Group - Advanced Manufacturing Industries,SILKEN BERLAYMONT HOTEL,996874,664.122
"Department for Business, Innovation and Skills","Department for Business, Innovation and Skills",08/06/2010,Corporate Management Consultancy,"Innovation, Enterprise & Better Regulation Executive - Better Regulation Executive (BRE)",SIR DONALD CURRY,997637,-5634
"Department for Business, Innovation and Skills","Department for Business, Innovation and Skills",08/06/2010,Corporate Management Consultancy,"Innovation, Enterprise & Better Regulation Executive - Better Regulation Executive (BRE)",SIR DONALD CURRY,997640,1201.1
"Department for Business, Innovation and Skills","Department for Business, Innovation and Skills",08/06/2010,Corporate Management Consultancy,"Innovation, Enterprise & Better Regulation Executive - Better Regulation Executive (BRE)",SIR DONALD CURRY,997639,1309.4
"Department for Business, Innovation and Skills","Department for Business, Innovation and Skills",08/06/2010,Corporate Management Consultancy,"Innovation, Enterprise & Better Regulation Executive - Better Regulation Executive (BRE)",SIR DONALD CURRY,997638,1536.23
"Department for Business, Innovation and Skills","Department for Business, Innovation and Skills",08/06/2010,Corporate Management Consultancy,"Innovation, Enterprise & Better Regulation Executive - Better Regulation Executive (BRE)",SIR DONALD CURRY,997641,5634
"Department for Business, Innovation and Skills","Department for Business, Innovation and Skills",08/06/2010,Corporate Management Consultancy,"Innovation, Enterprise & Better Regulation Executive - Better Regulation Executive (BRE)",SIR DONALD CURRY,997637,5634
"Department for Business, Innovation and Skills","Department for Business, Innovation and Skills",08/06/2010,Corporate Management Consultancy,"Innovation, Enterprise & Better Regulation Executive - Better Regulation Executive (BRE)",SIR DONALD CURRY,997637,5634
"Department for Business, Innovation and Skills","Department for Business, Innovation and Skills",22/06/2010,External Legal Advice and Services,Shareholder Executive - Shareholder Executive,SLAUGHTER AND MAY,999390,17041.91
"Department for Business, Innovation and Skills","Department for Business, Innovation and Skills",18/06/2010,Purchase of Office Machinery,"Innovation, Enterprise & Better Regulation Executive - Better Regulation Executive (BRE)",SOFTWARE FOR DATA ANALYSIS,998472,4847
"Department for Business, Innovation and Skills","Department for Business, Innovation and Skills",02/06/2010,Accounting Services,Finance & Commercial Group - Finance Group,SPECIALIST COMPUTER CENTRES PLC,997149,9394
"Department for Business, Innovation and Skills","Department for Business, Innovation and Skills",24/06/2010,External Training,Fair Markets Group Summary - Employment Relations,STEPHEN RETFORD,999506,550
"Department for Business, Innovation and Skills","Department for Business, Innovation and Skills",18/06/2010,External Training,"Innovation, Enterprise & Better Regulation Executive - Enterprise Directorate",STUART MURRAY (GLOBE TRAINING),998806,1699.2
"Department for Business, Innovation and Skills","Department for Business, Innovation and Skills",10/06/2010,Freight Charges,Fair Markets Group Summary - Employment Relations,SWETS INFORMATION SERVICES,997889,-16.5
"Department for Business, Innovation and Skills","Department for Business, Innovation and Skills",10/06/2010,Freight Charges,Fair Markets Group Summary - Employment Relations,SWETS INFORMATION SERVICES,997889,-14.5
"Department for Business, Innovation and Skills","Department for Business, Innovation and Skills",10/06/2010,Publications,"Legal, People & Communications Group - Legal",SWETS INFORMATION SERVICES,993110,-273.05
"Department for Business, Innovation and Skills","Department for Business, Innovation and Skills",14/06/2010,Publications,"Legal, People & Communications Group - Legal",SWETS INFORMATION SERVICES,993110,-273.05
"Department for Business, Innovation and Skills","Department for Business, Innovation and Skills",14/06/2010,Publications,Office of Manpower Economics - Office of Manpower Economics,SWETS INFORMATION SERVICES,998362,-114.62
"Department for Business, Innovation and Skills","Department for Business, Innovation and Skills",29/06/2010,Publications,Office of Manpower Economics - Office of Manpower Economics,SWETS INFORMATION SERVICES,998362,-114.62
"Department for Business, Innovation and Skills","Department for Business, Innovation and Skills",14/06/2010,Publications,"Legal, People & Communications Group - Communications Directorate",SWETS INFORMATION SERVICES,998360,-50.52
"Department for Business, Innovation and Skills","Department for Business, Innovation and Skills",29/06/2010,Publications,Office of Manpower Economics - Office of Manpower Economics,SWETS INFORMATION SERVICES,998826,739.07
"Department for Business, Innovation and Skills","Department for Business, Innovation and Skills",28/06/2010,Economic Consultancy & Research,Office of Manpower Economics - Office of Manpower Economics,TBP2 LTD,999746,31475
"Department for Business, Innovation and Skills","Department for Business, Innovation and Skills",03/06/2010,Hire of Agency Staff (Clerical/Secretariat/Other),Finance & Commercial Group - Information and Workplace Strategies,TFPL LTD,997361,1021.122
"Department for Business, Innovation and Skills","Department for Business, Innovation and Skills",25/06/2010,Hire of Agency Staff (Clerical/Secretariat/Other),Finance & Commercial Group - Information and Workplace Strategies,TFPL LTD,999624,1021.122
"Department for Business, Innovation and Skills","Department for Business, Innovation and Skills",15/06/2010,Internal Training,"Legal, People & Communications Group - Communications Directorate",THE CREATIVE COLLABORATION COMPANY LTD,998477,1000
"Department for Business, Innovation and Skills","Department for Business, Innovation and Skills",28/06/2010,Entertaining UK,SCIENCE & RESEARCH GROUP - RESEARCH BASE,THE GORING HOTEL,999400,634.47
"Department for Business, Innovation and Skills","Department for Business, Innovation and Skills",07/06/2010,Insolvency Service Policy Work,Fair Markets Group Summary - Insolvency Service,THE INSOLVENCY SERVICE,997537,160600
"Department for Business, Innovation and Skills","Department for Business, Innovation and Skills",23/06/2010,External Training,"Innovation, Enterprise & Better Regulation Executive - Innovation",THE LANCE EDYNBRY PARTNERSHIP,999358,1025
"Department for Business, Innovation and Skills","Department for Business, Innovation and Skills",14/06/2010,External Training,"Innovation, Enterprise & Better Regulation Executive - Innovation",THE LANCE EDYNBRY PARTNERSHIP,998262,2000
"Department for Business, Innovation and Skills","Department for Business, Innovation and Skills",17/06/2010,Printing,Office of Manpower Economics - Office of Manpower Economics,THE STATIONERY OFFICE LTD,998713,6166.21
"Department for Business, Innovation and Skills","Department for Business, Innovation and Skills",28/06/2010,Publications,Ministerial and Parliamentary Support Team - Ministerial and Parliamentary Support Team,THE STATIONERY OFFICE LTD,999845,720
"Department for Business, Innovation and Skills","Department for Business, Innovation and Skills",08/06/2010,Entertaining UK,GOVERNMENT OFFICE FOR SCIENCE - GOVERNMENT OFFICE FOR SCIENCE,THE TRAVELLERS CLUB,997734,1113.947
"Department for Business, Innovation and Skills","Department for Business, Innovation and Skills",11/06/2010,External Training,Shareholder Executive - Shareholder Executive,THE WHITEHALL AND INDUSTRY GROUP,998233,3650
"Department for Business, Innovation and Skills","Department for Business, Innovation and Skills",21/06/2010,Economic Consultancy & Research,Strategic Policy Analysis - Strategic Policy Analysis,THE WORK FOUNDATION,999160,15000
"Department for Business, Innovation and Skills","Department for Business, Innovation and Skills",02/06/2010,Printing,GOVERNMENT OFFICE FOR SCIENCE - GOVERNMENT OFFICE FOR SCIENCE,THINK-LAB LTD,997296,3207.4
"Department for Business, Innovation and Skills","Department for Business, Innovation and Skills",21/06/2010,Catering Services,GOVERNMENT OFFICE FOR SCIENCE - GOVERNMENT OFFICE FOR SCIENCE,THOMAS TELFORD LTD,999116,515.25
"Department for Business, Innovation and Skills","Department for Business, Innovation and Skills",18/06/2010,Hospitality - UK,"Innovation, Enterprise & Better Regulation Executive - Better Regulation Executive (BRE)",THOMAS TELFORD LTD T/A ONE GREAT GEORGE STREET,998857,-29.375
"Department for Business, Innovation and Skills","Department for Business, Innovation and Skills",18/06/2010,Hospitality - UK,"Innovation, Enterprise & Better Regulation Executive - Better Regulation Executive (BRE)",THOMAS TELFORD LTD T/A ONE GREAT GEORGE STREET,998856,727.9125
"Department for Business, Innovation and Skills","Department for Business, Innovation and Skills",10/06/2010,Publications,Fair Markets Group Summary - Employment Relations,THOMSON REUTERS (LEGAL) LTD T/A SWEET AND MAXWELL,997983,511.2
"Department for Business, Innovation and Skills","Department for Business, Innovation and Skills",10/06/2010,External Training,Fair Markets Group Summary - Europe Directorate,THRESHOLDS LTD,998050,1900
"Department for Business, Innovation and Skills","Department for Business, Innovation and Skills",17/06/2010,Economic Consultancy & Research,Fair Markets Group Summary - Employment Relations,TNS UK LTD,998789,43371
"Department for Business, Innovation and Skills","Department for Business, Innovation and Skills",04/06/2010,Economic Consultancy & Research,GOVERNMENT OFFICE FOR SCIENCE - GOVERNMENT OFFICE FOR SCIENCE,Name withheld - data protection,997574,2000
"Department for Business, Innovation and Skills","Department for Business, Innovation and Skills",28/06/2010,Economic Consultancy & Research,GOVERNMENT OFFICE FOR SCIENCE - GOVERNMENT OFFICE FOR SCIENCE,TRIBAL CONSULTING LTD,999821,8897.73
"Department for Business, Innovation and Skills","Department for Business, Innovation and Skills",17/06/2010,Hire of Conference Facilities,Fair Markets Group Summary - Consumer and Competition Policy,TUC,998768,1691.39
"Department for Business, Innovation and Skills","Department for Business, Innovation and Skills",16/06/2010,Economic Consultancy & Research,GOVERNMENT OFFICE FOR SCIENCE - GOVERNMENT OFFICE FOR SCIENCE,UNIVERSITY OF OXFORD,998668,4800
"Department for Business, Innovation and Skills","Department for Business, Innovation and Skills",16/06/2010,Economic Consultancy & Research,Fair Markets Group Summary - Employment Relations,UNIVERSITY OF WARWICK,998640,20000
"Department for Business, Innovation and Skills","Department for Business, Innovation and Skills",18/06/2010,Hire of Agency Staff (Professional/Management),Finance & Commercial Group - Finance Group,VENN GROUP LTD,998830,998.9615
"Department for Business, Innovation and Skills","Department for Business, Innovation and Skills",17/06/2010,Hire of Agency Staff (Clerical/Secretariat/Other),Finance & Commercial Group - Finance Group,VENN GROUP LTD,998794,621.246
"Department for Business, Innovation and Skills","Department for Business, Innovation and Skills",07/06/2010,Hire of Agency Staff (Clerical/Secretariat/Other),Finance & Commercial Group - Finance Group,VENN GROUP LTD,997495,944.8175
"Department for Business, Innovation and Skills","Department for Business, Innovation and Skills",25/06/2010,Hire of Agency Staff (Clerical/Secretariat/Other),Finance & Commercial Group - Finance Group,VENN GROUP LTD,999575,996.588
"Department for Business, Innovation and Skills","Department for Business, Innovation and Skills",15/06/2010,Stationery,"Legal, People & Communications Group - Legal",VIKING DIRECT LTD,998007,-503.96925
"Department for Business, Innovation and Skills","Department for Business, Innovation and Skills",10/06/2010,Stationery,"Legal, People & Communications Group - Legal",VIKING DIRECT LTD,998004,-496.87225
"Department for Business, Innovation and Skills","Department for Business, Innovation and Skills",14/06/2010,Stationery,"Legal, People & Communications Group - Legal",VIKING DIRECT LTD,997808,-169.153
"Department for Business, Innovation and Skills","Department for Business, Innovation and Skills",14/06/2010,Stationery,"Legal, People & Communications Group - Legal",VIKING DIRECT LTD,998239,-8.21325
"Department for Business, Innovation and Skills","Department for Business, Innovation and Skills",14/06/2010,Stationery,"Legal, People & Communications Group - Legal",VIKING DIRECT LTD,997808,-2.96
"Department for Business, Innovation and Skills","Department for Business, Innovation and Skills",16/06/2010,Stationery,"Legal, People & Communications Group - Legal",VIKING DIRECT LTD,998047,-2.26
"Department for Business, Innovation and Skills","Department for Business, Innovation and Skills",15/06/2010,Stationery,"Legal, People & Communications Group - Legal",VIKING DIRECT LTD,998007,503.96925
"Department for Business, Innovation and Skills","Department for Business, Innovation and Skills",15/06/2010,Stationery,"Legal, People & Communications Group - Legal",VIKING DIRECT LTD,998007,503.96925
"Department for Business, Innovation and Skills","Department for Business, Innovation and Skills",29/06/2010,Mobile Phones,Fair Markets Group Summary - Europe and World Trade Directorates,VODAFONE LTD,998999,-68.53775
"Department for Business, Innovation and Skills","Department for Business, Innovation and Skills",28/06/2010,Mobile Phones,Fair Markets Group Summary - Consumer and Competition Policy,VODAFONE LTD,999535,-37.77625
"Department for Business, Innovation and Skills","Department for Business, Innovation and Skills",23/06/2010,Mobile Phones,Fair Markets Group Summary - ECO,VODAFONE LTD,998977,-33.94575
"Department for Business, Innovation and Skills","Department for Business, Innovation and Skills",18/06/2010,Mobile Phones,Business Group - Life Sciences,VODAFONE LTD,998931,-31.24325
"Department for Business, Innovation and Skills","Department for Business, Innovation and Skills",01/06/2010,Mobile Phones,Fair Markets Group Summary - Fair Markets Director General's Office,VODAFONE LTD,997159,-30.153
"Department for Business, Innovation and Skills","Department for Business, Innovation and Skills",08/06/2010,Mobile Phones,Strategy Group - Strategy Directorate,VODAFONE LTD,996584,-20.398
"Department for Business, Innovation and Skills","Department for Business, Innovation and Skills",28/06/2010,Mobile Phones,Business Group - Economic Development Directorate,VODAFONE LTD,998963,-11.0215
"Department for Business, Innovation and Skills","Department for Business, Innovation and Skills",28/06/2010,Mobile Phones,Business Group - Economic Development Directorate,VODAFONE LTD,998963,-10.787
"Department for Business, Innovation and Skills","Department for Business, Innovation and Skills",23/06/2010,Mobile Phones,Fair Markets Group Summary - ECO,VODAFONE LTD,998977,-8.1075
"Department for Business, Innovation and Skills","Department for Business, Innovation and Skills",24/06/2010,Mobile Phones,Business Group - Information Economy,VODAFONE LTD,999095,-7.05
"Department for Business, Innovation and Skills","Department for Business, Innovation and Skills",23/06/2010,Mobile Phones,Fair Markets Group Summary - ECO,VODAFONE LTD,999021,-2.737
"Department for Business, Innovation and Skills","Department for Business, Innovation and Skills",28/06/2010,Mobile Line Rental,Ministerial and Parliamentary Support Team - Ministerial and Parliamentary Support Team,VODAFONE LTD,999844,673.82725
"Department for Business, Innovation and Skills","Department for Business, Innovation and Skills",21/06/2010,Mobile Call Charges,Finance & Commercial Group - Finance Group,VODAFONE LTD,998940,-38.5165
"Department for Business, Innovation and Skills","Department for Business, Innovation and Skills",22/06/2010,Mobile Call Charges,Fair Markets Group Summary - Europe Directorate,VODAFONE LTD,998979,-23.03
"Department for Business, Innovation and Skills","Department for Business, Innovation and Skills",23/06/2010,Mobile Call Charges,Fair Markets Group Summary - ECO,VODAFONE LTD,998982,-20.8035
"Department for Business, Innovation and Skills","Department for Business, Innovation and Skills",28/06/2010,Mobile Call Charges,Fair Markets Group Summary - Europe Directorate,VODAFONE LTD,998986,-17.756
"Department for Business, Innovation and Skills","Department for Business, Innovation and Skills",30/06/2010,Mobile Call Charges,Fair Markets Group Summary - Europe Directorate,VODAFONE LTD,1000001,-15.272
"Department for Business, Innovation and Skills","Department for Business, Innovation and Skills",29/06/2010,Mobile Call Charges,Fair Markets Group Summary - Europe Directorate,VODAFONE LTD,998999,-5.67525
"Department for Business, Innovation and Skills","Department for Business, Innovation and Skills",30/06/2010,Mobile Call Charges,Fair Markets Group Summary - Europe Directorate,VODAFONE LTD,1000001,-2.553
"Department for Business, Innovation and Skills","Department for Business, Innovation and Skills",15/06/2010,External Training,"Legal, People & Communications Group - Communications Directorate",WILSON SHERRIFF LTD,998478,5292
"Department for Business, Innovation and Skills","Department for Business, Innovation and Skills",16/06/2010,Hire of Agency Staff (Professional/Management),"Legal, People & Communications Group - Communications Directorate",XCHANGETEAM GROUP LTD,997516,842.005
"Department for Business, Innovation and Skills","Department for Business, Innovation and Skills",23/06/2010,Hire of Agency Staff (Professional/Management),"Legal, People & Communications Group - Communications Directorate",XCHANGETEAM GROUP LTD,998127,842.005
"Department for Business, Innovation and Skills","Department for Business, Innovation and Skills",29/06/2010,Hire of Agency Staff (Professional/Management),"Legal, People & Communications Group - Communications Directorate",XCHANGETEAM GROUP LTD,999851,842.005
"Department for Business, Innovation and Skills","Department for Business, Innovation and Skills",17/06/2010,Hire of Agency Staff (Professional/Management),"Legal, People & Communications Group - Communications Directorate",XCHANGETEAM GROUP LTD,998438,1052.50625
"Department for Business, Innovation and Skills","Department for Business, Innovation and Skills",23/06/2010,Hire of Agency Staff (Professional/Management),"Legal, People & Communications Group - Communications Directorate",XCHANGETEAM GROUP LTD,999318,1052.50625
"Department for Business, Innovation and Skills","Department for Business, Innovation and Skills",16/06/2010,Contract Management,"Innovation, Enterprise & Better Regulation Executive - Enterprise Directorate",XCHANGETEAM GROUP LTD,998693,846
"Department for Business, Innovation and Skills","Department for Business, Innovation and Skills",10/06/2010,Contract Management,"Innovation, Enterprise & Better Regulation Executive - Enterprise Directorate",XCHANGETEAM GROUP LTD,998115,1692
"Department for Business, Innovation and Skills","Department for Business, Innovation and Skills",03/06/2010,Contract Management,"Innovation, Enterprise & Better Regulation Executive - Enterprise Directorate",XCHANGETEAM GROUP LTD,997500,2115
"Department for Business, Innovation and Skills","Department for Business, Innovation and Skills",23/06/2010,Contract Management,"Innovation, Enterprise & Better Regulation Executive - Enterprise Directorate",XCHANGETEAM GROUP LTD,999473,2115
"Department for Business, Innovation and Skills","Department for Business, Innovation and Skills",30/06/2010,Contract Management,"Innovation, Enterprise & Better Regulation Executive - Enterprise Directorate",XCHANGETEAM GROUP LTD,1000058,2115
"Department for Business, Innovation and Skills","Department for Business, Innovation and Skills",17/06/2010,Purchase of Office Machinery,Shareholder Executive - Shareholder Executive,XEROX (UK) LTD,997986,-143.73775
"Department for Business, Innovation and Skills","Department for Business, Innovation and Skills",29/06/2010,Purchase of Office Machinery,Shareholder Executive - Shareholder Executive,XEROX (UK) LTD,997986,-143.73775
"Department for Business, Innovation and Skills","Department for Business, Innovation and Skills",17/06/2010,Purchase of Office Machinery,Shareholder Executive - Shareholder Executive,XEROX (UK) LTD,997986,-140.6795
"Department for Business, Innovation and Skills","Department for Business, Innovation and Skills",29/06/2010,Purchase of Office Machinery,Shareholder Executive - Shareholder Executive,XEROX (UK) LTD,997986,-140.6795
"Department for Business, Innovation and Skills","Department for Business, Innovation and Skills",11/06/2010,Purchase of Office Machinery,Shareholder Executive - Shareholder Executive,XEROX (UK) LTD,997988,-119.85
"Department for Business, Innovation and Skills","Department for Business, Innovation and Skills",17/06/2010,Purchase of Office Machinery,Shareholder Executive - Shareholder Executive,XEROX (UK) LTD,997988,-119.85
"Department for Business, Innovation and Skills","Department for Business, Innovation and Skills",11/06/2010,Purchase of Office Machinery,Shareholder Executive - Shareholder Executive,XEROX (UK) LTD,997985,-94.893
"Department for Business, Innovation and Skills","Department for Business, Innovation and Skills",17/06/2010,Other Printing and Stationery Costs,Business Group - Business Competitiveness - Secretariat/GRU,XEROX (UK) LTD,996906,-71.45175
"Department for Business, Innovation and Skills","Department for Business, Innovation and Skills",02/06/2010,Hire of Office Equipment,Fair Markets Group Summary - Europe and World Trade Directorates,XEROX FINANCE LTD,997260,1256.62725
"Department for Business, Innovation and Skills","Department for Business, Innovation and Skills",10/06/2010,Hire of Reprographic Equipment,Ministerial and Parliamentary Support Team - Ministerial and Parliamentary Support Team,XEROX FINANCE LTD,998085,590.69
"Department for Business, Innovation and Skills","Department for Business, Innovation and Skills",17/06/2010,Stationery,Finance & Commercial Group - Information and Workplace Strategies,XMA LTD,998749,2659.64775
